Body Name,Body,Service Division Label,Service Division Code,Organisational Unit,Expenditure Category,Expenditure Code,CIPFA detailed expediture type,CIPFA detailed expediture code,Narrative,Date,Transaction number,Net Amount,Capital and Revenue,Supplier Name,Supplier ID
Chorley Borough Council,http://statistics.data.gov.uk/id/local-authority/30UE,General Fund Revenue Account,,Policy & Governance,Processional Routes,40177,Supplies and Services,,Drinks at the Freedom of the Borough event on 22-07-17,04/08/2017,123112,"1,210.50",Revenue,Ace Bars Ltd,54338
Chorley Borough Council,http://statistics.data.gov.uk/id/local-authority/30UE,Lorraine Cross,,Early Intervention,External Contractor - Trust or Charity,50008,Cash,,Active Nation Management Fee Contract Year 12 Apr17-Mar-18,04/08/2017,123103,"32,804.92",Revenue,Active Nation UK Ltd,17144
Chorley Borough Council,http://statistics.data.gov.uk/id/local-authority/30UE,Office Accommodation,,Policy & Governance,Burglar Alarms & Security Systems,20075,Fixtures and Fittings,,REDCARE 09/08/15 - 08/08/16,09/08/2017,114329,365.18,Revenue,ADT Fire & Security,16645
Chorley Borough Council,http://statistics.data.gov.uk/id/local-authority/30UE,Chorley Borough Council,,Early Intervention,Burglar Alarms & Security Systems,20075,Fixtures and Fittings,,Work on System,09/08/2017,116496,519.63,Revenue,ADT Fire & Security,16645
Chorley Borough Council,http://statistics.data.gov.uk/id/local-authority/30UE,General Fund Revenue Account,,Policy & Governance,Burglar Alarms & Security Systems,20075,Premises Related Expenses,,maint access control TH 28/02/17 - 27/05/17,09/08/2017,119036,703.89,Revenue,ADT Fire & Security,16645
Chorley Borough Council,http://statistics.data.gov.uk/id/local-authority/30UE,Chorley Borough Council,,Policy & Governance,Burglar Alarms & Security Systems,20075,Premises Related Expenses,,Purchase of 2 door controllers @ 1023 each,09/08/2017,120902,"2,046.00",Revenue,ADT Fire & Security,16645
Chorley Borough Council,http://statistics.data.gov.uk/id/local-authority/30UE,Chorley Borough Council,,Policy & Governance,Burglar Alarms & Security Systems,20075,Premises Related Expenses,,intruder annexe,09/08/2017,121031,330.28,Revenue,ADT Fire & Security,16645
Chorley Borough Council,http://statistics.data.gov.uk/id/local-authority/30UE,General Fund Revenue Account,,Policy & Governance,Burglar Alarms & Security Systems,20075,Premises Related Expenses,,Maint Access Th 28/05/17 - 27/06/17,09/08/2017,121032,703.89,Revenue,ADT Fire & Security,16645
Chorley Borough Council,http://statistics.data.gov.uk/id/local-authority/30UE,Civic Services,,Policy & Governance,Fire Alarms,20072,Cash,,maint Annexe 27/06/17 - 26/06/18,09/08/2017,121922,353.54,Revenue,ADT Fire & Security,16645
Chorley Borough Council,http://statistics.data.gov.uk/id/local-authority/30UE,Roger Handscombe,,Business Development & Growth,Planned Maintenance,20006,Expenditure,,Blanket order for PPM works from June 2017,11/08/2017,122762,514.80,Revenue,ADT Fire & Security,16645
Chorley Borough Council,http://statistics.data.gov.uk/id/local-authority/30UE,Legal Democratic & HR Services,,Policy & Governance,Fire Alarms,20072,Expenditure,,Maint fire alarm US 23/01/17 - 22/0/118,09/08/2017,122768,873.00,Revenue,ADT Fire & Security,16645
Chorley Borough Council,http://statistics.data.gov.uk/id/local-authority/30UE,Business,,Business Development & Growth,CCTV Camera Maintenance,40007,Expenditure,,Cotswold House Project works,11/08/2017,122977,431.44,Revenue,ADT Fire & Security,16645
Chorley Borough Council,http://statistics.data.gov.uk/id/local-authority/30UE,Cost of Service,,Business Development & Growth,CCTV Camera Maintenance,40007,Expenditure,,Cotswold House Project works,11/08/2017,122978,634.21,Revenue,ADT Fire & Security,16645
Chorley Borough Council,http://statistics.data.gov.uk/id/local-authority/30UE,Property Services,,Business Development & Growth,General Repairs - Reactive,20004,Expenditure,,Blanket Order for period May/June 2017,11/08/2017,122982,400.00,Revenue,ADT Fire & Security,16645
Chorley Borough Council,http://statistics.data.gov.uk/id/local-authority/30UE,Transformation,,Business Development & Growth,Planned Maintenance,20006,Cash,,Blanket order for PPM works from June 2017,11/08/2017,123143,"1,962.00",Revenue,ADT Fire & Security,16645
Chorley Borough Council,http://statistics.data.gov.uk/id/local-authority/30UE,Chorley Borough Council,,Customer & Digital,Vehicle Maintenance,30045,Transport Related Expenses,,Please supply the following parts:  1092730-3 VM Guide pulley,30/08/2017,123687,104.97,Revenue,Aebi Schmidt UK Ltd,17287
Chorley Borough Council,http://statistics.data.gov.uk/id/local-authority/30UE,Waste & Streetscene Services,,Customer & Digital,Vehicle Maintenance,30045,Expenditure,,Please supply the following parts:  1023097-5 VM Water Pump (Substitute for: 1021887-3),30/08/2017,123687,349.37,Revenue,Aebi Schmidt UK Ltd,17287
Chorley Borough Council,http://statistics.data.gov.uk/id/local-authority/30UE,Cost of Service,,Customer & Digital,Vehicle Maintenance,30045,Expenditure,,1084765-8 Freight and Package,30/08/2017,123687,15.00,Revenue,Aebi Schmidt UK Ltd,17287
Chorley Borough Council,http://statistics.data.gov.uk/id/local-authority/30UE,Capital Fund,,Business Development & Growth,Main Contractor,3007,Capital Expenditure,,Provision of tenant liaison support,16/08/2017,123176,"2,492.50",Revenue,AEW Architects & Designers Ltd,66520
Chorley Borough Council,http://statistics.data.gov.uk/id/local-authority/30UE,Chris Moister,,Business Development & Growth,Main Contractor,3007,Other Subjective Codes,,Provision of tenant liaison support,30/08/2017,123690,"6,070.00",Revenue,AEW Architects & Designers Ltd,66520
Chorley Borough Council,http://statistics.data.gov.uk/id/local-authority/30UE,Shared Financial Services,,Customer & Digital,Bank Charges,40151,Expenditure,,cash transactions,09/08/2017,123207,"1,743.47",Revenue,Allpay Net Ltd,17242
Chorley Borough Council,http://statistics.data.gov.uk/id/local-authority/30UE,Chorley Borough Council,,Policy & Governance,Other Contributions,40145,Supplies and Services,,mayors charity,16/08/2017,123457,"2,320.00",Revenue,Alzheimer`s Society,66088
Chorley Borough Council,http://statistics.data.gov.uk/id/local-authority/30UE,Chorley Borough Council,,Customer & Digital,Computer Equipment-Purchase,40098,Supplies and Services,,11 X Excel Cat5e data points (9 X wifi 2 X TV in Activity) 2 2 X 24way CAT5e patch panel 3 1 X 9u X 450mm wallmounted cabinet,11/08/2017,122896,504.00,Revenue,Ampec,76813
Chorley Borough Council,http://statistics.data.gov.uk/id/local-authority/30UE,Chorley Borough Council,,Customer & Digital,Miscellaneous Expenses,40200,Supplies and Services,,Clayton Brook Community Centre 20 X Excel Cat5e data points) wire in genuine CAT5e cable 2 1 X 24way CAT5e patch panel,30/08/2017,123738,590.00,Revenue,Ampec,76813
Chorley Borough Council,http://statistics.data.gov.uk/id/local-authority/30UE,Communities,,Early Intervention,Children's Activities,40188,Net Expenditure or Balance,,RUAG 1st July,16/08/2017,123302,375.00,Revenue,Anderton Centre - LOAI,56108
Chorley Borough Council,http://statistics.data.gov.uk/id/local-authority/30UE,Policy and Performance,,Policy & Governance,Professional Fees,40063,Professional Fees,,Music provision 3 x performances for Chorley Flower Show,11/08/2017,123303,"1,400.00",Revenue,Anthony Mason,65367
Chorley Borough Council,http://statistics.data.gov.uk/id/local-authority/30UE,Democratic Represent and  Mgnt,1007,Business Development & Growth,Maintenance/Nature Reserves,20045,Expenditure,,Supply of 2kg Rainbow Perennial mix and 1kg of Rainbow Annual mix. to be delivered to Bengal St Depot FAO NAME REDACTED,16/08/2017,122035,864.00,Revenue,AP Broome Landscapes,67257
Chorley Borough Council,http://statistics.data.gov.uk/id/local-authority/30UE,Early Intervention & Support,,Early Intervention,Miscellaneous Expenses,40200,Expenditure,,ADDRESS REDACTED,09/08/2017,123188,455.00,Revenue,APG Domestic Services Ltd,20448
Chorley Borough Council,http://statistics.data.gov.uk/id/local-authority/30UE,Health & Wellbeing,,Business Development & Growth,Main Contractor,3007,Capital Expenditure,Capital,Handrail at Tatton Recreation Ground to prevent access to bowling green,09/08/2017,123279,850.00,Revenue,Ark Welding Ltd,18154
Chorley Borough Council,http://statistics.data.gov.uk/id/local-authority/30UE,Early Intervention & Support,,Policy & Governance,Car Leasing Payment,14100,Expenditure,,Driver: NAME REDACTED Quote: 3108793 Toyota C-HR-1.8 Hybrid Dynamic 5dr CVT [Premium]  Hatchback Automatic,30/08/2017,123337,"3,577.32",Revenue,Arnold Clark Finance Ltd,20685
Chorley Borough Council,http://statistics.data.gov.uk/id/local-authority/30UE,Regulatory Services,,Policy & Governance,Car Leasing Payment,14100,Car Leasing,,vat+J552,30/08/2017,123337,318.69,Revenue,Arnold Clark Finance Ltd,20685
Chorley Borough Council,http://statistics.data.gov.uk/id/local-authority/30UE,Input Tax,,Policy & Governance,Manual Control Account,1,Other,,VAT,30/08/2017,123337,-318.69,Revenue,Arnold Clark Finance Ltd,20685
Chorley Borough Council,http://statistics.data.gov.uk/id/local-authority/30UE,Chorley Borough Council,,Policy & Governance,Bank Charges,40151,Finance & Insurance Expenses,,c/c,23/08/2017,123315,250.07,Revenue,Barclaycard Merchant Services,61601
Chorley Borough Council,http://statistics.data.gov.uk/id/local-authority/30UE,Finance Management,,Policy & Governance,Bank Charges,40151,Finance & Insurance Expenses,,marchant statement,23/08/2017,123350,746.89,Revenue,Barclaycard Merchant Services,61601
Chorley Borough Council,http://statistics.data.gov.uk/id/local-authority/30UE,Cost of Service,,Policy & Governance,Bank Charges,40151,Finance & Insurance Expenses,,merchant statement,23/08/2017,123351,"1,082.43",Revenue,Barclaycard Merchant Services,61601
Chorley Borough Council,http://statistics.data.gov.uk/id/local-authority/30UE,ECPS,,Business Development & Growth,Main Contractor,3007,Capital Expenditure,,"Overlay and reroofing of Chorley North units  13,14,15",11/08/2017,122310,"4,773.23",Revenue,BBR Roofing Ltd,76407
Chorley Borough Council,http://statistics.data.gov.uk/id/local-authority/30UE,Employment Skills & Business,,Business Development & Growth,Grants To Other Organisations,40127,Expenditure,,rate subsidy,16/08/2017,123347,724.85,Revenue,Ben Hall - Anytime Fitness Chorley,76500
Chorley Borough Council,http://statistics.data.gov.uk/id/local-authority/30UE,Homelessness,,Early Intervention,Laundry,40042,Cash,,"Linen Service at Cotswold Supported Housing, Cotswold Rd, Chorley, PR73HW. This is to cover the period between April 2017 18",11/08/2017,123072,261.40,Revenue,Berendsen UK Ltd,20799
Chorley Borough Council,http://statistics.data.gov.uk/id/local-authority/30UE,Chorley Borough Council,,Policy & Governance,Children's Activities,40188,Supplies and Services,,Hire of fairground rides for Chorley Flower Show,11/08/2017,123333,500.00,Revenue,Bewleys,76203
Chorley Borough Council,http://statistics.data.gov.uk/id/local-authority/30UE,General Fund Revenue Account,,Chief Executive,Other Fees,40212,Cash,,Contribution to Growth Lancashire 2017-2018,11/08/2017,123312,"15,000.00",Revenue,Blackburn with Darwen Borough Council,21000
Chorley Borough Council,http://statistics.data.gov.uk/id/local-authority/30UE,Business Support,1095,Business Development & Growth,External Contractor,40198,Expenditure,,1.Carefully (we wish to salvage them) disconnect/remove all the led sets from all the A6 trees in Chorley 2.All assoc cabling 3,23/08/2017,123580,"1,188.00",Revenue,Blackpool Borough Council,16518
Chorley Borough Council,http://statistics.data.gov.uk/id/local-authority/30UE,General Fund Revenue Account,,Early Intervention,Play Events,40181,Supplies and Services,,"Entertainment at Devonshire Road Recreation Ground, Chorley. Starting at 11.00am till 3.00pm on Wednesday 2nd August 2017",23/08/2017,123542,260.00,Revenue,Brian Gore,18370
Chorley Borough Council,http://statistics.data.gov.uk/id/local-authority/30UE,Cost of Service,,Policy & Governance,Professional Fees,40063,Professional Fees,,cfs prize,16/08/2017,123440,325.00,Revenue,Brighter Blooms,71496
Chorley Borough Council,http://statistics.data.gov.uk/id/local-authority/30UE,Customer  Advice Services,,Customer & Digital,Telephones - Rentals,40083,Supplies and Services,,recurring chargs,04/08/2017,123093,"3,432.37",Revenue,British Telecommunications Plc,17131
Chorley Borough Council,http://statistics.data.gov.uk/id/local-authority/30UE,Chorley Borough Council,,Customer & Digital,Telephones - Calls,40084,Expenditure,,usage charges,04/08/2017,123093,163.15,Revenue,British Telecommunications Plc,17131
Chorley Borough Council,http://statistics.data.gov.uk/id/local-authority/30UE,ICT Services,,Customer & Digital,Telephones - Other,40085,Supplies and Services,,one off,04/08/2017,123093,574.00,Revenue,British Telecommunications Plc,17131
Chorley Borough Council,http://statistics.data.gov.uk/id/local-authority/30UE,Customer & Digital,,Customer & Digital,Computer Equipment-Purchase,40098,Expenditure,,Belkin Ultimate Keyboard for iPad Air 2 - Black,04/08/2017,123102,"1,945.34",Revenue,BT Business Direct Ltd,63990
Chorley Borough Council,http://statistics.data.gov.uk/id/local-authority/30UE,General Fund Revenue Account,,Policy & Governance,Publicity - Advertising,40157,Supplies and Services,,2 x 1/2 Page adverts booked for 12 months Invoice no. 1108,16/08/2017,123404,895.00,Revenue,Buckshaw Leaflet Distribution,73050
Chorley Borough Council,http://statistics.data.gov.uk/id/local-authority/30UE,Control Accounts,Control,Policy & Governance,Manual Control Account,1,Other Subjective Codes,,Control Account,30/08/2017,CRREF67,912.00,Revenue,Burnley Borough Council,61877
Chorley Borough Council,http://statistics.data.gov.uk/id/local-authority/30UE,Vision,,Customer & Digital,External Contractor,40198,Expenditure,,Emptying of interceptor and clearing of drains in Bengal St depot as required for EA licence at agreed price 65per hour 4hrs ,18/08/2017,123004,325.00,Revenue,C J Lyon,16579
Chorley Borough Council,http://statistics.data.gov.uk/id/local-authority/30UE,Chorley Borough Council,,Customer & Digital,Vehicle Maintenance,30045,Vehicle Repairs & Maintenance,,Complete repairs to FH15MZU as per your pro-forma invoice dated 12/07/17.  Job No = 9519,23/08/2017,123538,609.19,Revenue,C P Davidson & Sons Ltd,21093
Chorley Borough Council,http://statistics.data.gov.uk/id/local-authority/30UE,Unapportionable Central OHeads,1009,Customer & Digital,Emergency Call Out System,40096,Other Communication Expenses,,Out of hours call charges June 2017,02/08/2017,123023,456.12,Revenue,CallCare Ltd,20257
Chorley Borough Council,http://statistics.data.gov.uk/id/local-authority/30UE,Customer Transformation,,Customer & Digital,Emergency Call Out System,40096,Expenditure,,Out of hours standing charge August 2017 (including bank holidays),02/08/2017,123023,170.00,Revenue,CallCare Ltd,20257
Chorley Borough Council,http://statistics.data.gov.uk/id/local-authority/30UE,Customer Transformation,,Customer & Digital,Emergency Call Out System,40096,Expenditure,,Out of hours call charges July 2017,11/08/2017,123245,408.24,Revenue,CallCare Ltd,20257
Chorley Borough Council,http://statistics.data.gov.uk/id/local-authority/30UE,Unapportionable Central OHeads,1009,Customer & Digital,Emergency Call Out System,40096,Communication and Computing,5028,Out of hours standing charge September 2017,11/08/2017,123245,120.00,Revenue,CallCare Ltd,20257
Chorley Borough Council,http://statistics.data.gov.uk/id/local-authority/30UE,Customer & Digital,,Customer & Digital,Computer Equipment-Purchase,40098,Expenditure,,Contract number GB-505918-OKS click costs for period 01-04-2017 till 30-06-2017.  Total Cost 1898.17,25/08/2017,123587,"1,898.17",Revenue,Canon (UK) Ltd,17492
Chorley Borough Council,http://statistics.data.gov.uk/id/local-authority/30UE,Chorley Borough Council,,Customer & Digital,Computer Equipment-Purchase,40098,Net Expenditure or Balance,,Contract number GB-506449-OKS for period 01-04-2017 till 30-06-2017 click costs Total cost 143.19,25/08/2017,123587,143.19,Revenue,Canon (UK) Ltd,17492
Chorley Borough Council,http://statistics.data.gov.uk/id/local-authority/30UE,Cost of Service,,Business Development & Growth,Tools & Equipment - Maintenance,40005,Expenditure,,Please repair Gate on High street @ 40:00 Please repair 6x market trucks @ 25:50,09/08/2017,123119,295.00,Revenue,Catterall & Wood Ltd,59988
Chorley Borough Council,http://statistics.data.gov.uk/id/local-authority/30UE,Cost of Service,,Early Intervention,Training Course Fees,17010,Expenditure,,CIH Level 5 Housing,11/08/2017,123289,"2,350.00",Revenue,Chartered Institute Of Housing,16776
Chorley Borough Council,http://statistics.data.gov.uk/id/local-authority/30UE,Early Intervention & Support,,Early Intervention,Taxi Testing & Vehicle Safety Report,40234,Expenditure,,mot,09/08/2017,123195,987.30,Revenue,Chorley Autocare Ltd,17110
Chorley Borough Council,http://statistics.data.gov.uk/id/local-authority/30UE,Paul Carter,,Early Intervention,Taxi Testing & Vehicle Safety Report,40234,Expenditure,,taxi test,09/08/2017,123195,153.90,Revenue,Chorley Autocare Ltd,17110
Chorley Borough Council,http://statistics.data.gov.uk/id/local-authority/30UE,Performance,,Chief Executive,Tools & Equipment - Maintenance,40005,Cash,,keys,30/08/2017,123735,6.88,Revenue,Chorley BC Petty Cash,16301
Chorley Borough Council,http://statistics.data.gov.uk/id/local-authority/30UE,Chorley Borough Council,,Chief Executive,Miscellaneous Expenses,40200,Cash,,lock keys,30/08/2017,123735,14.00,Revenue,Chorley BC Petty Cash,16301
Chorley Borough Council,http://statistics.data.gov.uk/id/local-authority/30UE,Democratic Services,,Chief Executive,Tools & Equipment - Purchase,40003,Cash,,plastic boxes,30/08/2017,123735,5.00,Revenue,Chorley BC Petty Cash,16301
Chorley Borough Council,http://statistics.data.gov.uk/id/local-authority/30UE,Central Services,,Chief Executive,Tools & Equipment - Purchase,40003,Supplies and Services,,plastic boxes,30/08/2017,123735,15.00,Revenue,Chorley BC Petty Cash,16301
Chorley Borough Council,http://statistics.data.gov.uk/id/local-authority/30UE,Democratic Services,,Chief Executive,Tools & Equipment - Purchase,40003,Cash,,plastic boxes,30/08/2017,123735,15.00,Revenue,Chorley BC Petty Cash,16301
Chorley Borough Council,http://statistics.data.gov.uk/id/local-authority/30UE,Central and Support Services,,Chief Executive,Tools & Equipment - Purchase,40003,"Equipment, Furniture & Materia",5023,keys cut,30/08/2017,123735,9.17,Revenue,Chorley BC Petty Cash,16301
Chorley Borough Council,http://statistics.data.gov.uk/id/local-authority/30UE,Chorley Borough Council,,Chief Executive,Cleaning Materials,40019,Expenditure,,sellotape,30/08/2017,123735,7.48,Revenue,Chorley BC Petty Cash,16301
Chorley Borough Council,http://statistics.data.gov.uk/id/local-authority/30UE,Conrad Heald,,Chief Executive,Miscellaneous Expenses,40200,Miscellaneous Expenses,5034,pay and display,30/08/2017,123735,3.00,Revenue,Chorley BC Petty Cash,16301
Chorley Borough Council,http://statistics.data.gov.uk/id/local-authority/30UE,Business Development Growth,,Chief Executive,Miscellaneous Expenses,40200,Expenditure,,refreshments,30/08/2017,123735,5.00,Revenue,Chorley BC Petty Cash,16301
Chorley Borough Council,http://statistics.data.gov.uk/id/local-authority/30UE,Civic Services,,Chief Executive,Refreshments,40036,Cash,,cordial,30/08/2017,123735,2.00,Revenue,Chorley BC Petty Cash,16301
Chorley Borough Council,http://statistics.data.gov.uk/id/local-authority/30UE,Central and Support Services,,Chief Executive,Refreshments,40036,Food,,cordial,30/08/2017,123735,2.98,Revenue,Chorley BC Petty Cash,16301
Chorley Borough Council,http://statistics.data.gov.uk/id/local-authority/30UE,Civic Services,,Chief Executive,Refreshments,40036,Cash,,milk,30/08/2017,123735,0.99,Revenue,Chorley BC Petty Cash,16301
Chorley Borough Council,http://statistics.data.gov.uk/id/local-authority/30UE,Cost of Service,,Chief Executive,Use Of Transport - Mayoral Car,30015,Transport Recharges,5017,car wash,30/08/2017,123735,5.00,Revenue,Chorley BC Petty Cash,16301
Chorley Borough Council,http://statistics.data.gov.uk/id/local-authority/30UE,Carol Russell,,Chief Executive,Use Of Transport - Mayoral Car,30015,Transport Recharges,5017,car items,30/08/2017,123735,10.00,Revenue,Chorley BC Petty Cash,16301
Chorley Borough Council,http://statistics.data.gov.uk/id/local-authority/30UE,Museums and Galleries,,Chief Executive,Miscellaneous Expenses,40200,Miscellaneous Expenses,5034,postage,30/08/2017,123735,17.76,Revenue,Chorley BC Petty Cash,16301
Chorley Borough Council,http://statistics.data.gov.uk/id/local-authority/30UE,Democratic Services,,Chief Executive,Stationery,40050,Cash,,blu tak,30/08/2017,123735,3.73,Revenue,Chorley BC Petty Cash,16301
Chorley Borough Council,http://statistics.data.gov.uk/id/local-authority/30UE,Central and Support Services,,Chief Executive,Tools & Equipment - Purchase,40003,"Equipment, Furniture & Materia",5023,padlock,30/08/2017,123735,7.96,Revenue,Chorley BC Petty Cash,16301
Chorley Borough Council,http://statistics.data.gov.uk/id/local-authority/30UE,General Fund Revenue Account,,Chief Executive,Community Develop Initiatives,40185,Cash,,refreshments,30/08/2017,123735,52.43,Revenue,Chorley BC Petty Cash,16301
Chorley Borough Council,http://statistics.data.gov.uk/id/local-authority/30UE,General Fund Revenue Account,,Chief Executive,Miscellaneous Expenses,40200,Cash,,postage,30/08/2017,123735,8.55,Revenue,Chorley BC Petty Cash,16301
Chorley Borough Council,http://statistics.data.gov.uk/id/local-authority/30UE,Communities,,Chief Executive,Community Develop Initiatives,40185,Campaign & Initiative Expenses,,refreshments,30/08/2017,123735,2.47,Revenue,Chorley BC Petty Cash,16301
Chorley Borough Council,http://statistics.data.gov.uk/id/local-authority/30UE,Business Improvement,,Chief Executive,Use Of Transport - Mayoral Car,30015,Transport Recharges,5017,car wash,30/08/2017,123735,10.00,Revenue,Chorley BC Petty Cash,16301
Chorley Borough Council,http://statistics.data.gov.uk/id/local-authority/30UE,General Fund Revenue Account,,Chief Executive,Community Develop Initiatives,40185,Cash,,tin opener,30/08/2017,123735,1.59,Revenue,Chorley BC Petty Cash,16301
Chorley Borough Council,http://statistics.data.gov.uk/id/local-authority/30UE,Chorley Borough Council,,Chief Executive,Exhibitions,40176,Event Expenses,,table,30/08/2017,123735,24.16,Revenue,Chorley BC Petty Cash,16301
Chorley Borough Council,http://statistics.data.gov.uk/id/local-authority/30UE,"RO5 Cult, Env, Reg & Planning",,Chief Executive,Supplies-Grounds Maintenance,40025,Cash,,water,30/08/2017,123735,2.27,Revenue,Chorley BC Petty Cash,16301
Chorley Borough Council,http://statistics.data.gov.uk/id/local-authority/30UE,Democratic Represent and  Mgnt,1007,Chief Executive,Tools & Equipment - Purchase,40003,"Equipment, Furniture & Materia",5023,screw hooks,30/08/2017,123735,4.17,Revenue,Chorley BC Petty Cash,16301
Chorley Borough Council,http://statistics.data.gov.uk/id/local-authority/30UE,Policy & Governance,,Chief Executive,Refreshments,40036,Expenditure,,milk,30/08/2017,123735,5.94,Revenue,Chorley BC Petty Cash,16301
Chorley Borough Council,http://statistics.data.gov.uk/id/local-authority/30UE,Central & Support Appointments,1009,Chief Executive,Tools & Equipment - Purchase,40003,"Equipment, Furniture & Materia",5023,fuses,30/08/2017,123735,0.84,Revenue,Chorley BC Petty Cash,16301
Chorley Borough Council,http://statistics.data.gov.uk/id/local-authority/30UE,Civic Services,,Chief Executive,Tools & Equipment - Purchase,40003,Cash,,batteries,30/08/2017,123735,3.33,Revenue,Chorley BC Petty Cash,16301
Chorley Borough Council,http://statistics.data.gov.uk/id/local-authority/30UE,General Fund Revenue Account,,Chief Executive,Processional Routes,40177,Event Expenses,,milk,30/08/2017,123735,3.10,Revenue,Chorley BC Petty Cash,16301
Chorley Borough Council,http://statistics.data.gov.uk/id/local-authority/30UE,Chorley Borough Council,,Chief Executive,Use Of Transport - Mayoral Car,30015,Transport Recharges,5017,car wash,30/08/2017,123735,5.00,Revenue,Chorley BC Petty Cash,16301
Chorley Borough Council,http://statistics.data.gov.uk/id/local-authority/30UE,Central and Support Services,,Chief Executive,Tools & Equipment - Purchase,40003,"Equipment, Furniture & Materia",5023,batteries,30/08/2017,123735,3.33,Revenue,Chorley BC Petty Cash,16301
Chorley Borough Council,http://statistics.data.gov.uk/id/local-authority/30UE,Group Director Service Group A,,Chief Executive,Refreshments,40036,Cash,,sweeteners,30/08/2017,123735,5.56,Revenue,Chorley BC Petty Cash,16301
Chorley Borough Council,http://statistics.data.gov.uk/id/local-authority/30UE,Chorley Borough Council,,Chief Executive,Cleaning Materials,40019,"Equipment, Furniture & Materia",5023,dishbrush,30/08/2017,123735,2.08,Revenue,Chorley BC Petty Cash,16301
Chorley Borough Council,http://statistics.data.gov.uk/id/local-authority/30UE,Chorley Borough Council,,Chief Executive,Computer Equipment-Purchase,40098,Cash,,wrist support,30/08/2017,123735,8.32,Revenue,Chorley BC Petty Cash,16301
Chorley Borough Council,http://statistics.data.gov.uk/id/local-authority/30UE,Chorley Borough Council,,Chief Executive,Hospitality,40201,Cash,,water,30/08/2017,123735,11.13,Revenue,Chorley BC Petty Cash,16301
Chorley Borough Council,http://statistics.data.gov.uk/id/local-authority/30UE,Policy & Governance,,Chief Executive,Cleaning Materials,40019,"Equipment, Furniture & Materia",5023,dishwasher tablets,30/08/2017,123735,13.32,Revenue,Chorley BC Petty Cash,16301
Chorley Borough Council,http://statistics.data.gov.uk/id/local-authority/30UE,Chorley Borough Council,,Early Intervention,Play Events,40181,Supplies and Services,,"Description	Quantity	PrAdult Bouncy Castle	 1x	 100 Generator	 1x	 50 Event Staff Hours	 10x	 200 Furniture Removal	 1x	 50",16/08/2017,123366,695.00,Revenue,Chorley Bouncy Castles,55301
Chorley Borough Council,http://statistics.data.gov.uk/id/local-authority/30UE,Chorley Borough Council,,Business Development & Growth,Miscellaneous Expenses,40200,Expenditure,,contribution to cch,02/08/2017,123015,"10,000.00",Revenue,Chorley Community Housing,76692
Chorley Borough Council,http://statistics.data.gov.uk/id/local-authority/30UE,Central and Support Services,,Policy & Governance,Tools & Equipment - Purchase,40003,Expenditure,,Various light bulbs as per Quote number 20109,16/08/2017,123412,423.16,Revenue,Chorley Electrical Traders Ltd,16330
Chorley Borough Council,http://statistics.data.gov.uk/id/local-authority/30UE,Chorley Borough Council,,Policy & Governance,Rent/Hire Of Premises,20017,Premises Rents,,Room hire for polling station - 8 June 2017 - Parliamentary election,09/08/2017,123241,335.00,Revenue,Chorley Methodist Church,18422
Chorley Borough Council,http://statistics.data.gov.uk/id/local-authority/30UE,Capital Fund,,Policy & Governance,Other Capital Grants/Loans,3000,Other,,Chorley Council Grant Contribution for Chorley Youth Zone,02/08/2017,122165,"25,000.00",Revenue,Chorley Youth Zone,76620
Chorley Borough Council,http://statistics.data.gov.uk/id/local-authority/30UE,Communications,,Policy & Governance,Miscellaneous Expenses,40200,Cash,,Fist Aid provision at Chorley Flower,11/08/2017,123339,250.00,Revenue,Chorley`s Angels Community Group,63882
Chorley Borough Council,http://statistics.data.gov.uk/id/local-authority/30UE,Policy & Governance,,Policy & Governance,Professional Fees,40063,Professional Fees,,cfs prize,16/08/2017,123441,400.00,Revenue,Chrysanthemums Direct,76213
Chorley Borough Council,http://statistics.data.gov.uk/id/local-authority/30UE,Chorley Borough Council,,Business Development & Growth,Planned Maintenance,20006,Net Expenditure or Balance,,Blanket order for PPM contracts for alarms at Astley.,23/08/2017,123413,"1,534.47",Revenue,Chubb Electronic Sec Sys Ltd,16228
Chorley Borough Council,http://statistics.data.gov.uk/id/local-authority/30UE,Shared Financial Services,,Policy & Governance,Professional Fees,14011,Expenditure,,professional fees,18/08/2017,123502,310.00,Revenue,CIPFA,16201
Chorley Borough Council,http://statistics.data.gov.uk/id/local-authority/30UE,Shared Financial Services,,Policy & Governance,Computer Software-Additional,40102,Computing,,credited in full,11/08/2017,121469,"3,600.00",Revenue,Civica UK Limited,17463
Chorley Borough Council,http://statistics.data.gov.uk/id/local-authority/30UE,Place,,Early Intervention,Prevention Fund,40242,Cash,,homeless,16/08/2017,123460,575.00,Revenue,NAME REDACTED,76874
Chorley Borough Council,http://statistics.data.gov.uk/id/local-authority/30UE,Chris Moister,,Business Development & Growth,Other Expenses,3030,Capital Expenditure,,Quotation Number S1495656 - Permanent removal of the 6-sheet Clear Channel advertising panel 3304-0048 on New Market St,16/08/2017,123236,"2,045.25",Revenue,Clear Channel UK Ltd,19544
Chorley Borough Council,http://statistics.data.gov.uk/id/local-authority/30UE,Fiona Daniels,,Business Development & Growth,Main Contractor,3007,Capital Expenditure,,Cotswold house survey and sample analysis,23/08/2017,123144,935.00,Revenue,CMC Asbestos Surveys Ltd,66621
Chorley Borough Council,http://statistics.data.gov.uk/id/local-authority/30UE,Chorley Borough Council,,Business Development & Growth,Planned Maintenance,20006,Expenditure,,Work required following fixed wire testing at various sites,16/08/2017,123126,"3,724.00",Revenue,Corlett Electrical Eng Co Ltd,16271
Chorley Borough Council,http://statistics.data.gov.uk/id/local-authority/30UE,Chris Moister,,Business Development & Growth,Planned Maintenance,20006,Expenditure,,Work required following fixed wire testing at various sites,16/08/2017,123137,598.00,Revenue,Corlett Electrical Eng Co Ltd,16271
Chorley Borough Council,http://statistics.data.gov.uk/id/local-authority/30UE,Chorley Borough Council,,Business Development & Growth,Planned Maintenance,20006,Expenditure,,Work required following fixed wire testing at various sites,16/08/2017,123138,746.00,Revenue,Corlett Electrical Eng Co Ltd,16271
Chorley Borough Council,http://statistics.data.gov.uk/id/local-authority/30UE,Chorley Borough Council,,Business Development & Growth,Planned Maintenance,20006,Building Repairs & Maintenance,,appliance testin,18/08/2017,123493,"2,256.30",Revenue,Corlett Electrical Eng Co Ltd,16271
Chorley Borough Council,http://statistics.data.gov.uk/id/local-authority/30UE,Customer & Digital,,Customer & Digital,Grounds Maintenance Contractor,20043,Expenditure,,Sectional fell of mature beech tree in Astley Park as listed on invoice 14856,30/08/2017,123633,550.00,Revenue,Cornthwaite Tree Care,21250
Chorley Borough Council,http://statistics.data.gov.uk/id/local-authority/30UE,Waste & Streetscene Services,,Customer & Digital,Grounds Maintenance Contractor,20043,Expenditure,,Works completed Sheep Hill Brow on 27th & 28th June,30/08/2017,123739,"1,100.00",Revenue,Cornthwaite Tree Care,21250
Chorley Borough Council,http://statistics.data.gov.uk/id/local-authority/30UE,Waste & Streetscene Services,,Customer & Digital,Grounds Maintenance Contractor,20043,Expenditure,,Work completed at Astley park on 10th -12th July 2017,30/08/2017,123740,"1,650.00",Revenue,Cornthwaite Tree Care,21250
Chorley Borough Council,http://statistics.data.gov.uk/id/local-authority/30UE,Legal Democratic & HR Services,,Business Development & Growth,Gas,20014,Energy Costs,,union street,30/08/2017,123652,404.85,Revenue,Corona Energy Retail 2 Ltd,67249
Chorley Borough Council,http://statistics.data.gov.uk/id/local-authority/30UE,Non Distributed Costs,,Business Development & Growth,Gas,20014,Energy Costs,5006,town hall,30/08/2017,123653,325.77,Revenue,Corona Energy Retail 2 Ltd,67249
Chorley Borough Council,http://statistics.data.gov.uk/id/local-authority/30UE,Chorley Borough Council,,Business Development & Growth,Gas,20014,Premises Related Expenses,,astley hall,30/08/2017,123656,447.38,Revenue,Corona Energy Retail 2 Ltd,67249
Chorley Borough Council,http://statistics.data.gov.uk/id/local-authority/30UE,Cost of Service,,Business Development & Growth,Gas,20014,Energy Costs,5006,cotsolwd house,30/08/2017,123661,451.18,Revenue,Corona Energy Retail 2 Ltd,67249
Chorley Borough Council,http://statistics.data.gov.uk/id/local-authority/30UE,Andrew Daniels,,Policy & Governance,Professional Fees,40063,Professional Fees,,flower show priize,18/08/2017,123456,400.00,Revenue,Craig House Cacti,71499
Chorley Borough Council,http://statistics.data.gov.uk/id/local-authority/30UE,Business Development Growth,,Business Development & Growth,Other Capital Related Fees,3024,Capital Expenditure,,Provision of structural and civil engineering services in accordance with tender dated 22/11/2016.,30/08/2017,123569,"9,130.00",Revenue,Curtins Consulting Engineers,20049
Chorley Borough Council,http://statistics.data.gov.uk/id/local-authority/30UE,Chief Executive,,Customer & Digital,Supplies-Grounds Maintenance,40025,Supplies for Stores,,"1 Memorial Balmoral Bench 1,8m KD with stainless steel plaque 8``x2`` for NAME REDACTED",18/08/2017,123450,360.62,Revenue,Cyan,61782
Chorley Borough Council,http://statistics.data.gov.uk/id/local-authority/30UE,Chorley Borough Council,,Policy & Governance,Tools & Equipment - Hire,40004,Expenditure,,Delivery installation and hire of Container for 2 weeks from Monday 17 July,09/08/2017,123177,400.00,Revenue,D Cain & Son Ltd,21353
Chorley Borough Council,http://statistics.data.gov.uk/id/local-authority/30UE,General Fund Revenue Account,,Customer & Digital,Computer Equipment-Purchase,40098,Cash,,Hanns-G HT225 Monitor x 2 @155 per unit,04/08/2017,122450,310.00,Revenue,DAC Technology Ltd,76398
Chorley Borough Council,http://statistics.data.gov.uk/id/local-authority/30UE,General Fund Revenue Account,,Customer & Digital,Computer Equipment-Purchase,40098,Supplies and Services,,Hanns-G HT273 Monitor x 2 @ 279.00 per unit,04/08/2017,122450,558.00,Revenue,DAC Technology Ltd,76398
Chorley Borough Council,http://statistics.data.gov.uk/id/local-authority/30UE,ICT,,Customer & Digital,Computer Equipment-Purchase,40098,Cash,,Hanns-G HT274 Monitor x 12 @ 129 per unit,04/08/2017,122450,"1,548.00",Revenue,DAC Technology Ltd,76398
Chorley Borough Council,http://statistics.data.gov.uk/id/local-authority/30UE,Chorley Borough Council,,Customer & Digital,Computer Equipment-Purchase,40098,Net Expenditure or Balance,,Oki C911dn printer. currently on trial. would like to go ahead and purchase this device,04/08/2017,123099,"1,089.00",Revenue,DAC Technology Ltd,76398
Chorley Borough Council,http://statistics.data.gov.uk/id/local-authority/30UE,Customer Transformation,,Customer & Digital,Miscellaneous Expenses,40200,Miscellaneous Expenses,5034,Dell Optical Mouse MS116 Black x 36 @ 5.50 each,09/08/2017,123187,198.00,Revenue,DAC Technology Ltd,76398
Chorley Borough Council,http://statistics.data.gov.uk/id/local-authority/30UE,Customer  Advice Services,,Customer & Digital,Miscellaneous Expenses,40200,Supplies and Services,,Dell Wired Keyboard KB216 Black x 36 @ 10 per unit,09/08/2017,123187,360.00,Revenue,DAC Technology Ltd,76398
Chorley Borough Council,http://statistics.data.gov.uk/id/local-authority/30UE,Employment Skills & Business,,Business Development & Growth,Grants To Other Organisations,40127,Expenditure,,grant,25/08/2017,123576,278.96,Revenue,NAME REDACTED,76852
Chorley Borough Council,http://statistics.data.gov.uk/id/local-authority/30UE,General Fund Revenue Account,,Customer & Digital,Other Contributions,40145,Supplies and Services,,ADDRESS REDACTED,02/08/2017,123079,"4,306.80",Revenue,NAME REDACTED,73900
Chorley Borough Council,http://statistics.data.gov.uk/id/local-authority/30UE,Business Development Growth,,Business Development & Growth,Grants To Other Organisations,40127,Expenditure,,sib grant,04/08/2017,123082,250.00,Revenue,NAME REDACTED,76830
Chorley Borough Council,http://statistics.data.gov.uk/id/local-authority/30UE,Chorley Borough Council,,Policy & Governance,NNDR Central Share,2034,Other Subjective Codes,,central sahre,15/08/2017,122942,"1,117,002.00",Revenue,Department of Communities and Local Government,16280
Chorley Borough Council,http://statistics.data.gov.uk/id/local-authority/30UE,Collection Fund Revenue Accoun,,Policy & Governance,Transitional Protection,2033,Other,,transitional relief,15/08/2017,122942,"209,575.00",Revenue,Department of Communities and Local Government,16280
Chorley Borough Council,http://statistics.data.gov.uk/id/local-authority/30UE,Budget Holder Control Code,,Policy & Governance,NNDR Central Share,2034,Other Subjective Codes,,central sahre,15/08/2017,122943,"1,117,002.00",Revenue,Department of Communities and Local Government,16280
Chorley Borough Council,http://statistics.data.gov.uk/id/local-authority/30UE,Collection Fund Revenue Accs,,Policy & Governance,Transitional Protection,2033,Other Funds and Balance Sheet,,transitional relief,15/08/2017,122943,"209,575.00",Revenue,Department of Communities and Local Government,16280
Chorley Borough Council,http://statistics.data.gov.uk/id/local-authority/30UE,Deputy Chief Executive,,Policy & Governance,Professional Fees,40063,Services,5027,cfs prize,16/08/2017,123443,400.00,Revenue,Derbyshire Bonsai,71502
Chorley Borough Council,http://statistics.data.gov.uk/id/local-authority/30UE,Communications & Events,,Policy & Governance,Professional Fees,40063,Professional Fees,,cfs prize,16/08/2017,123444,325.00,Revenue,Devine Nurseries,71497
Chorley Borough Council,http://statistics.data.gov.uk/id/local-authority/30UE,Chorley Borough Council,,Customer & Digital,Tools & Equipment - Maintenance,40005,Supplies and Services,,For items/ repairs listed in Document 027264,30/08/2017,123693,298.03,Revenue,Dick Leigh,17138
Chorley Borough Council,http://statistics.data.gov.uk/id/local-authority/30UE,Central & Support Appointments,1009,Policy & Governance,Training Course Fees,17010,Expenditure,,Seminar - Planning Policy for Traveller Sites Two Years On,18/08/2017,123483,585.00,Revenue,Dods Parliamentary Communications Ltd,57094
Chorley Borough Council,http://statistics.data.gov.uk/id/local-authority/30UE,General Fund Revenue Account,,Customer & Digital,External Contractor,40198,Supplies and Services,,Verti draining as per quote sent to NAME REDACTED ; Astley Park,16/08/2017,123001,"1,820.00",Revenue,Duncan Ross Ltd,76803
Chorley Borough Council,http://statistics.data.gov.uk/id/local-authority/30UE,Control Accounts,,Policy & Governance,Manual Control Account,1,Other,,RETURN PAYMENT,02/08/2017,118855,"1,893.45",Revenue,DWP Debt Management,70624
Chorley Borough Council,http://statistics.data.gov.uk/id/local-authority/30UE,Andrew Daniels,,Policy & Governance,Professional Fees,40063,Professional Fees,,cfs prize,16/08/2017,123445,400.00,Revenue,East of Eden Nursery,71506
Chorley Borough Council,http://statistics.data.gov.uk/id/local-authority/30UE,CuDOSS Unit,,Policy & Governance,Rent/Hire Of Premises,20017,Premises Rents,,Room Hire for polling station LCC election 4 May 2017 and UKPE election 8 June 2017,18/08/2017,123523,300.00,Revenue,Eccleston Over 60s Club,21590
Chorley Borough Council,http://statistics.data.gov.uk/id/local-authority/30UE,ICT Services,,Customer & Digital,Mobile Voice and Data,40086,Communication and Computing,5028,Jul-17,09/08/2017,123244,506.95,Revenue,EE - Orange,16486
Chorley Borough Council,http://statistics.data.gov.uk/id/local-authority/30UE,Customer & Digital,,Customer & Digital,Mobile Voice and Data,40086,Expenditure,,july 17 charges,09/08/2017,123196,"2,070.28",Revenue,EE LIMITED,63366
Chorley Borough Council,http://statistics.data.gov.uk/id/local-authority/30UE,Capital Fund,,Business Development & Growth,Main Contractor,3007,Capital Expenditure,,161655 Primrose Gardens Valuation 4 - June 2017,04/08/2017,122902,"64,731.53",Revenue,Eric Wright Construction Ltd,76464
Chorley Borough Council,http://statistics.data.gov.uk/id/local-authority/30UE,Housing,,Business Development & Growth,Main Contractor,3007,Net Expenditure or Balance,,Primrose gardens Valuation Statements,25/08/2017,123189,"367,255.78",Revenue,Eric Wright Construction Ltd,76464
Chorley Borough Council,http://statistics.data.gov.uk/id/local-authority/30UE,Chris Moister,,Customer & Digital,Main Contractor,3007,Capital Expenditure,,Delivery of the pre-construction service agreement in relation to the Market Walk Extension,25/08/2017,123371,"276,737.10",Revenue,Eric Wright Construction Ltd,76464
Chorley Borough Council,http://statistics.data.gov.uk/id/local-authority/30UE,Chris Moister,,Business Development & Growth,Planned Maintenance,20006,Expenditure,,PPM order 1659,16/08/2017,123141,440.00,Revenue,Eurosafe Solutions Limited,66302
Chorley Borough Council,http://statistics.data.gov.uk/id/local-authority/30UE,General Fund Revenue Account,,Customer & Digital,Supplies-Grounds Maintenance,40025,Supplies for Stores,,"Various Grasses, Hanging Baskets and Topiary",16/08/2017,123355,814.00,Revenue,Everglades Nurseries Ltd,20202
Chorley Borough Council,http://statistics.data.gov.uk/id/local-authority/30UE,Chorley Borough Council,,Policy & Governance,Professional Fees,40063,Professional Fees,,cfs prize,16/08/2017,123446,400.00,Revenue,Eversley Nursery,71503
Chorley Borough Council,http://statistics.data.gov.uk/id/local-authority/30UE,Communications & Events,,Policy & Governance,Professional Fees,40063,Professional Fees,,cfs prize,16/08/2017,123447,550.00,Revenue,Every Picture Tells A Story,71500
Chorley Borough Council,http://statistics.data.gov.uk/id/local-authority/30UE,Group Director Service Group A,,Policy & Governance,Corp Training Organisational Development,17006,Indirect Expenses,,Executive Coaching Sessions,02/08/2017,123024,788.60,Revenue,Evolving Edge Ltd,76455
Chorley Borough Council,http://statistics.data.gov.uk/id/local-authority/30UE,General Fund Revenue Account,,Customer & Digital,Hire Of Vehicles and Plant,30028,Transport Related Expenses,,18/07 - 04/09,16/08/2017,122898,745.38,Revenue,F R Sharrock Ltd,18091
Chorley Borough Council,http://statistics.data.gov.uk/id/local-authority/30UE,Vision,,Customer & Digital,Supplies-Grounds Maintenance,40025,"Equipment, Furniture & Materia",5023,"Please supply the following parts: SC-501110701 BLADE,SUPPORT HUB  x 6",16/08/2017,123068,157.26,Revenue,F R Sharrock Ltd,18091
Chorley Borough Council,http://statistics.data.gov.uk/id/local-authority/30UE,General Fund Revenue Account,,Customer & Digital,Supplies-Grounds Maintenance,40025,"Equipment, Furniture & Materia",5023,Please supply the following parts: SC-503259401 WASHER x 10 EACH 2.80,16/08/2017,123068,28.00,Revenue,F R Sharrock Ltd,18091
Chorley Borough Council,http://statistics.data.gov.uk/id/local-authority/30UE,Waste & Streetscene Services,,Customer & Digital,Supplies-Grounds Maintenance,40025,"Equipment, Furniture & Materia",5023,"Please supply the following parts: SC-295688201 BLADE,ADAPTOR BOSS x 6 Each 19.39",16/08/2017,123068,116.34,Revenue,F R Sharrock Ltd,18091
Chorley Borough Council,http://statistics.data.gov.uk/id/local-authority/30UE,Service Management & Support,,Customer & Digital,Supplies-Grounds Maintenance,40025,"Equipment, Furniture & Materia",5023,"Please supply the following parts: WX-6981B WIDE,ANGLE COVER SET x 1 EACH 56.36",16/08/2017,123068,56.36,Revenue,F R Sharrock Ltd,18091
Chorley Borough Council,http://statistics.data.gov.uk/id/local-authority/30UE,Waste & Streetscene Services,,Customer & Digital,Supplies-Grounds Maintenance,40025,"Equipment, Furniture & Materia",5023,"Please supply the following part: KU-3C00197270 KIT SEAL,COUPLER x 1 EACH 20.13",16/08/2017,123068,20.13,Revenue,F R Sharrock Ltd,18091
Chorley Borough Council,http://statistics.data.gov.uk/id/local-authority/30UE,Waste & Streetscene Services,,Customer & Digital,Supplies-Grounds Maintenance,40025,"Equipment, Furniture & Materia",5023,Please supply the following parts: HS-NV12GASM QUICK RELEASE COUPL M x 2 EACH 3.17,16/08/2017,123068,104.71,Revenue,F R Sharrock Ltd,18091
Chorley Borough Council,http://statistics.data.gov.uk/id/local-authority/30UE,Waste & Streetscene Services,,Customer & Digital,Supplies-Grounds Maintenance,40025,"Equipment, Furniture & Materia",5023,Please supply the following parts: SC-579581001 SHAFT x 2 EACH 22.32 44.64 SC-295674201 WHEEL BEARING x 30 EACH,16/08/2017,123069,294.01,Revenue,F R Sharrock Ltd,18091
Chorley Borough Council,http://statistics.data.gov.uk/id/local-authority/30UE,Waste & Streetscene Services,,Customer & Digital,Hire Of Vehicles and Plant,30028,Expenditure,,Extending of tractor and flail hire from 17/07/17 through to 01/09/17,16/08/2017,123317,"1,714.37",Revenue,F R Sharrock Ltd,18091
Chorley Borough Council,http://statistics.data.gov.uk/id/local-authority/30UE,Chorley Borough Council,,Customer & Digital,Tools & Equipment - Maintenance,40005,"Equipment, Furniture & Materia",5023,For workshops parts s listed in Pro Forma No. 122636,18/08/2017,123396,634.15,Revenue,F R Sharrock Ltd,18091
Chorley Borough Council,http://statistics.data.gov.uk/id/local-authority/30UE,Waste & Streetscene Services,,Customer & Digital,Supplies-Grounds Maintenance,40025,Expenditure,,"Please supply the following parts: SC-295673210 MULCHING,BLADE [M53S] x 10",30/08/2017,123637,384.43,Revenue,F R Sharrock Ltd,18091
Chorley Borough Council,http://statistics.data.gov.uk/id/local-authority/30UE,Waste & Streetscene Services,,Customer & Digital,Supplies - Workshop,40246,Expenditure,,For various workshop items listed in Pro forma 123319,30/08/2017,123691,"1,086.57",Revenue,F R Sharrock Ltd,18091
Chorley Borough Council,http://statistics.data.gov.uk/id/local-authority/30UE,Early Intervention & Support,,Early Intervention,Miscellaneous Expenses,40200,Expenditure,,ADDRESS REDACTED,02/08/2017,122918,"1,655.00",Revenue,Firefly Energi Ltd,69925
Chorley Borough Council,http://statistics.data.gov.uk/id/local-authority/30UE,Business Development Growth,,Business Development & Growth,Promotional Expenses,40159,Expenditure,,"mobile farm,",11/08/2017,123329,640.00,Revenue,Fishers Mobile Farm,76861
Chorley Borough Council,http://statistics.data.gov.uk/id/local-authority/30UE,Health & Wellbeing,,Early Intervention,Equipment,3014,Capital Expenditure,,"Chlorine Control Unit  ChloriDES professional pool controller kit, Cl/pH/Temp 0.00 M to supply and fit 0.00 For Brinscall",04/08/2017,123117,"2,845.80",Revenue,Gaffey Technical Services Ltd,18844
Chorley Borough Council,http://statistics.data.gov.uk/id/local-authority/30UE,Health & Wellbeing,,Early Intervention,Sports Development Initiatives,40186,Cash,,T-shirts for couch to 5k x 93.,23/08/2017,123495,533.00,Revenue,Galaxy Print,16914
Chorley Borough Council,http://statistics.data.gov.uk/id/local-authority/30UE,Chorley Borough Council,,Policy & Governance,Professional Fees,40063,Professional Fees,,cfs prize,16/08/2017,123448,400.00,Revenue,Garden Blooms,76214
Chorley Borough Council,http://statistics.data.gov.uk/id/local-authority/30UE,Waste & Streetscene Services,,Customer & Digital,Supplies-Grounds Maintenance,40025,Expenditure,,Supply plastic refuse bags as per your quote 63090 dated 13.07.17.  Bottom-weld bag Colour : White Printed : printed 1 side ,16/08/2017,123469,"3,090.00",Revenue,Gelpack Excelsior Limited,74335
Chorley Borough Council,http://statistics.data.gov.uk/id/local-authority/30UE,Communications & Events,,Policy & Governance,Professional Fees,40063,Professional Fees,,prize money,16/08/2017,123429,325.00,Revenue,Glens Garden Gems,71504
Chorley Borough Council,http://statistics.data.gov.uk/id/local-authority/30UE,General Fund Revenue Account,,Early Intervention,Vandalism Repairs,20005,Cash,,Contract for Graffiti removal 2017,16/08/2017,123074,"1,475.00",Revenue,Graffiti Away,76316
Chorley Borough Council,http://statistics.data.gov.uk/id/local-authority/30UE,Chorley Borough Council,,Early Intervention,Vandalism Repairs,20005,Repairs Maintenance & Alts,5005,Contract for Graffiti removal 2017,16/08/2017,123397,330.00,Revenue,Graffiti Away,76316
Chorley Borough Council,http://statistics.data.gov.uk/id/local-authority/30UE,Chorley Borough Council,,Policy & Governance,HM Land Registry Fees,40174,Registration Fees,,N`HOODS,23/08/2017,123239,59.00,Revenue,H M Land Registry,17567
Chorley Borough Council,http://statistics.data.gov.uk/id/local-authority/30UE,General Fund Revenue Account,,Policy & Governance,HM Land Registry Fees,40174,Expenditure,,HOUSING,23/08/2017,123239,12.00,Revenue,H M Land Registry,17567
Chorley Borough Council,http://statistics.data.gov.uk/id/local-authority/30UE,Legal Services,,Policy & Governance,HM Land Registry Fees,40174,Registration Fees,,LEGAL,23/08/2017,123239,6.00,Revenue,H M Land Registry,17567
Chorley Borough Council,http://statistics.data.gov.uk/id/local-authority/30UE,General Fund Revenue Account,,Policy & Governance,HM Land Registry Fees,40174,Registration Fees,,LIBERATA,23/08/2017,123239,87.00,Revenue,H M Land Registry,17567
Chorley Borough Council,http://statistics.data.gov.uk/id/local-authority/30UE,Chorley Borough Council,,Policy & Governance,HM Land Registry Fees,40174,Registration Fees,,LOCAL TAX,23/08/2017,123239,13.00,Revenue,H M Land Registry,17567
Chorley Borough Council,http://statistics.data.gov.uk/id/local-authority/30UE,General Fund Revenue Account,,Policy & Governance,HM Land Registry Fees,40174,Registration Fees,,PLANNING,23/08/2017,123239,204.00,Revenue,H M Land Registry,17567
Chorley Borough Council,http://statistics.data.gov.uk/id/local-authority/30UE,Chorley Borough Council,,Policy & Governance,HM Land Registry Fees,40174,Registration Fees,,revs,23/08/2017,123239,9.00,Revenue,H M Land Registry,17567
Chorley Borough Council,http://statistics.data.gov.uk/id/local-authority/30UE,Chorley Borough Council,,Customer & Digital,Supplies-Grounds Maintenance,40025,Net Expenditure or Balance,,F14 McConnell Flail,30/08/2017,123630,300.00,Revenue,Halse South West Ltd,76890
Chorley Borough Council,http://statistics.data.gov.uk/id/local-authority/30UE,General Fund Revenue Account,,Customer & Digital,Supplies-Grounds Maintenance,40025,Net Expenditure or Balance,,Carriage to;  FAO NAME REDACTED Chorley Council Depot Bengal Street  Chorley PR7 1SA,30/08/2017,123630,20.00,Revenue,Halse South West Ltd,76890
Chorley Borough Council,http://statistics.data.gov.uk/id/local-authority/30UE,Business Support,1095,Business Development & Growth,Tools & Equipment - Purchase,40003,Expenditure,,1 x HD 7/11-4M Karcher Pressure Washer  899.00 1 x FR 345.00 1 x Long Lance   39.00 1 x Hose Reel  159.00 1 x 30m ,23/08/2017,123517,"1,602.65",Revenue,Hanson Cleaning Equipment Ltd,17297
Chorley Borough Council,http://statistics.data.gov.uk/id/local-authority/30UE,Chorley Borough Council,,Policy & Governance,Professional Fees,40063,Professional Fees,,cfs prize,16/08/2017,123430,325.00,Revenue,Hare Spring Cottage Plants,76212
Chorley Borough Council,http://statistics.data.gov.uk/id/local-authority/30UE,Policy & Governance,,Policy & Governance,Exhibitions & Special Events,40158,Expenditure,,Payment for the Secret garden,30/08/2017,123744,709.80,Revenue,Heartbreak Productions,56110
Chorley Borough Council,http://statistics.data.gov.uk/id/local-authority/30UE,Land drainage and related work,,Customer & Digital,Other Contributions,40145,Expenditure,,ADDRESS REDACTED,02/08/2017,123057,"4,617.60",Revenue,NAME REDACTED,73743
Chorley Borough Council,http://statistics.data.gov.uk/id/local-authority/30UE,Chorley Borough Council,,Policy & Governance,Core Funding Grants,40133,Expenditure,,Service Level Agreement invoice from 01.04.17 - 31.03.18,16/08/2017,123340,"5,000.00",Revenue,Help The Homeless (Chorley),16716
Chorley Borough Council,http://statistics.data.gov.uk/id/local-authority/30UE,Waste & Streetscene Services,,Customer & Digital,Supplies-Grounds Maintenance,40025,Expenditure,,1 pallet of Multipurpose compost,25/08/2017,123354,407.55,Revenue,Henry Alty Limited,22048
Chorley Borough Council,http://statistics.data.gov.uk/id/local-authority/30UE,Vision,,Customer & Digital,Supplies-Grounds Maintenance,40025,Expenditure,,30 - Anti climb round top Smartweld panel 30 - Plastic foot 60 - Coupler,25/08/2017,123585,853.50,Revenue,Heras Readyfence Hire & Sales,74680
Chorley Borough Council,http://statistics.data.gov.uk/id/local-authority/30UE,Chorley Borough Council,,Policy & Governance,Professional Fees,40063,Professional Fees,,cfs prize,16/08/2017,123431,250.00,Revenue,High Park Nurseries,71509
Chorley Borough Council,http://statistics.data.gov.uk/id/local-authority/30UE,General Fund Revenue Account,,Business Development & Growth,External Contractors,50008,Cash,,Confirmation of Costs and Measurements for the supply and laying of yellow and white Rainsafe Reflective Liquid Thermoplastic,04/08/2017,123003,"3,850.00",Revenue,Highway Road Services Ltd,76825
Chorley Borough Council,http://statistics.data.gov.uk/id/local-authority/30UE,Zoe Whiteside,,Business Development & Growth,Other Legal Fees,3020,Capital Expenditure,,Drafting negotiating and agreeing form of Building Contract amendments,18/08/2017,123503,"1,948.00",Revenue,Hill Dickinson LLP,62638
Chorley Borough Council,http://statistics.data.gov.uk/id/local-authority/30UE,"RO6 Protective, Cent & Other",,Policy & Governance,Professional Fees,40063,Professional Fees,,cfs prize,16/08/2017,123432,400.00,Revenue,Hippopottering,76215
Chorley Borough Council,http://statistics.data.gov.uk/id/local-authority/30UE,Group Director Service Group A,,Policy & Governance,Grants To Other Organisations,40127,Expenditure,,grant,02/08/2017,123083,250.00,Revenue,NAME REDACTED,76766
Chorley Borough Council,http://statistics.data.gov.uk/id/local-authority/30UE,"Cultural, Environmental & Plan",,Customer & Digital,Other Contributions,40145,Supplies and Services,,ADDRESS REDACTED,02/08/2017,123078,"3,888.98",Revenue,NAME REDACTED,73804
Chorley Borough Council,http://statistics.data.gov.uk/id/local-authority/30UE,Health & Wellbeing,,Business Development & Growth,Consultants Fees,3025,Capital Expenditure,,For provision of project management/employers agent services in accordance with tender dated 30.9.2016.,02/08/2017,123062,"2,075.00",Revenue,Identity Consult Ltd,76426
Chorley Borough Council,http://statistics.data.gov.uk/id/local-authority/30UE,Customer & Digital,,Customer & Digital,Training Course Fees,17010,Expenditure,,"Training Package: Uniform System Supervisor, Document Templates, Enterprise Admin, TLC Admin (each 2 days onsite)",16/08/2017,123372,"3,000.00",Revenue,IDOX Software Limited,17542
Chorley Borough Council,http://statistics.data.gov.uk/id/local-authority/30UE,Chorley Borough Council,,Policy & Governance,Fixtures & Fittings - Repair/Mtnce,20028,Expenditure,,aitfresh,25/08/2017,123577,457.88,Revenue,Initial Washroom Solutions,17607
Chorley Borough Council,http://statistics.data.gov.uk/id/local-authority/30UE,Holding and Suspense Accs,,System,Manual Control Account,1,Other,,Other,09/08/2017,122637,"1,468.85",Revenue,Inland Revenue 065py00102078,17445
Chorley Borough Council,http://statistics.data.gov.uk/id/local-authority/30UE,Central and Support Services,,Customer & Digital,Computer Equipment-Purchase,40098,Net Expenditure or Balance,,Set up and commisioning services: Temporary installation of a wi-fi network at Astley Park to cater for the Flower Show.,16/08/2017,123045,786.00,Revenue,Interconnect Network Systems,21292
Chorley Borough Council,http://statistics.data.gov.uk/id/local-authority/30UE,Business Support,1095,Business Development & Growth,Refuse Collection,20037,Expenditure,,Waste Compactor Rental Services @ 270.0 per month April 17 - March 18,11/08/2017,123110,270.00,Revenue,J&H Rentals Limited,70699
Chorley Borough Council,http://statistics.data.gov.uk/id/local-authority/30UE,Street Services,,Customer & Digital,Vehicles and Plant Operating Lease,30029,Expenditure,,Lease of John Deere Tractor PJ63 VCW from 26th August 2017 - 25th August 2018,04/08/2017,123026,"2,795.36",Revenue,Jcb Finance Ltd,17684
Chorley Borough Council,http://statistics.data.gov.uk/id/local-authority/30UE,Customer & Digital,,Customer & Digital,Vehicles and Plant Operating Lease,30029,Expenditure,,Lease of Kubota Tractor with Loader PO14 BFX from 26th August 2017 - 25th August 2018,04/08/2017,123026,"3,791.49",Revenue,Jcb Finance Ltd,17684
Chorley Borough Council,http://statistics.data.gov.uk/id/local-authority/30UE,General Fund Revenue Account,,Customer & Digital,Other Contributions,40145,Supplies and Services,,plrg,11/08/2017,123338,"5,000.00",Revenue,NAME REDACTED,73748
Chorley Borough Council,http://statistics.data.gov.uk/id/local-authority/30UE,Revenue Outturn,,Customer & Digital,Refunds,40220,Expenditure,,refund,18/08/2017,123459,295.00,Revenue,John Gaunt & Partners,76824
Chorley Borough Council,http://statistics.data.gov.uk/id/local-authority/30UE,Communications,,Policy & Governance,Miscellaneous Expenses,40200,Cash,,1 Large Trophy and 8 small trophies for Chorley Flower Show,11/08/2017,122876,329.93,Revenue,John Harrison Sports,17470
Chorley Borough Council,http://statistics.data.gov.uk/id/local-authority/30UE,Chorley Borough Council,,Customer & Digital,Statutory Notices,40160,Advertising and Publicity,,Planning Public Notices to appear in the Chorley Guardian April 2016 to March 2017,18/08/2017,122824,393.30,Revenue,Johnston Publishing Ltd,20072
Chorley Borough Council,http://statistics.data.gov.uk/id/local-authority/30UE,Deputy Chief Executive,,Customer & Digital,Statutory Notices,40160,Miscellaneous Expenses,,Planning Public Notices to appear in the Chorley Guardian April 2017 to March 2018,18/08/2017,123014,353.97,Revenue,Johnston Publishing Ltd,20072
Chorley Borough Council,http://statistics.data.gov.uk/id/local-authority/30UE,Chorley Borough Council,,Customer & Digital,Statutory Notices,40160,Expenditure,,Planning Public Notices to appear in the Chorley Guardian April 2017 to March 2018,18/08/2017,123014,353.97,Revenue,Johnston Publishing Ltd,20072
Chorley Borough Council,http://statistics.data.gov.uk/id/local-authority/30UE,Conrad Heald,,Business Development & Growth,Statutory Notices,40160,Expenditure,,advert reference no: NMC2595526 Publish a NOTICE OF VARIATION OF OFF STREET PARKING CHARGES Variation no:4 x3 ,04/08/2017,123066,550.62,Revenue,Johnston Publishing Ltd,20072
Chorley Borough Council,http://statistics.data.gov.uk/id/local-authority/30UE,Democratic Services,,Policy & Governance,Statutory Notices,40160,Advertising and Publicity,,notice of election expenses Chorley Guardian Tuesday 1 August 2017 and Lancashire Evening post on Thursday 27 July 2017,02/08/2017,123075,313.18,Revenue,Johnston Publishing Ltd,20072
Chorley Borough Council,http://statistics.data.gov.uk/id/local-authority/30UE,Business Development Growth,,Business Development & Growth,Statutory Notices,40160,Expenditure,,As per advert reference no: NMC2595526 To Publish a NOTICE OF VARIATION OF OFF STREET PARKING CHARGES,16/08/2017,123318,"1,101.24",Revenue,Johnston Publishing Ltd,20072
Chorley Borough Council,http://statistics.data.gov.uk/id/local-authority/30UE,Planning Services Unit,,Customer & Digital,Statutory Notices,40160,Miscellaneous Expenses,,Planning Public Notices to appear in the Chorley Guardian April 2017 to March 2018,30/08/2017,123627,393.30,Revenue,Johnston Publishing Ltd,20072
Chorley Borough Council,http://statistics.data.gov.uk/id/local-authority/30UE,Management & Administration,1009,Customer & Digital,Vehicle Maintenance,30045,Expenditure,,"Supply the following spare part for our machine RV14 DVB:  Page 419, Item No 50, Part Number 620005-1, Rubber Curtain Nozzle",25/08/2017,123571,90.28,Revenue,Johnston Sweepers Limited,20778
Chorley Borough Council,http://statistics.data.gov.uk/id/local-authority/30UE,Chorley Borough Council,,Customer & Digital,Vehicle Maintenance,30045,Net Expenditure or Balance,,"Supply the following spare part for RV14 DVB:  Page No 419, Item No 70, Part Number 282230-1 J Section Rubber 250 D Nozzle",25/08/2017,123571,81.63,Revenue,Johnston Sweepers Limited,20778
Chorley Borough Council,http://statistics.data.gov.uk/id/local-authority/30UE,Management & Administration,1009,Customer & Digital,Vehicle Maintenance,30045,Expenditure,,"Please supply the following spare part for RV14 DVB:  Page No 39, Item no 20, Part No 282577-1 Intake Flap",25/08/2017,123571,82.16,Revenue,Johnston Sweepers Limited,20778
Chorley Borough Council,http://statistics.data.gov.uk/id/local-authority/30UE,Chorley Borough Council,,Early Intervention,Tools & Equipment - Purchase,40003,Expenditure,,Custom Printed Degradable Dog Poop Bags: (as per proof - emailed separately) Type:Vest (tie handle) HD  Size:180mm x 280mm,04/08/2017,122396,392.08,Revenue,JRB EnterpriseLtd,21819
Chorley Borough Council,http://statistics.data.gov.uk/id/local-authority/30UE,Andrew Daniels,,Policy & Governance,Professional Fees,40063,Professional Fees,,cfs prize,16/08/2017,123433,300.00,Revenue,JRG Dahlias,71505
Chorley Borough Council,http://statistics.data.gov.uk/id/local-authority/30UE,Chorley Borough Council,,Early Intervention,Grants,3002,Net Expenditure or Balance,,ADDRESS REDACTED,16/08/2017,123454,"2,035.00",Revenue,K Berry Ltd,16421
Chorley Borough Council,http://statistics.data.gov.uk/id/local-authority/30UE,Disabled Facilities Grants,,Early Intervention,Grants,3002,Capital Fund Subjectives,,grant,16/08/2017,123462,"3,295.00",Revenue,K Berry Ltd,16421
Chorley Borough Council,http://statistics.data.gov.uk/id/local-authority/30UE,Chorley Borough Council,,Early Intervention,Grants,3002,Net Expenditure or Balance,,grant,16/08/2017,123464,"3,930.00",Revenue,K Berry Ltd,16421
Chorley Borough Council,http://statistics.data.gov.uk/id/local-authority/30UE,Capital Fund,,Early Intervention,Grants,3002,Capital Fund Subjectives,,grant,16/08/2017,123465,"2,530.00",Revenue,K Berry Ltd,16421
Chorley Borough Council,http://statistics.data.gov.uk/id/local-authority/30UE,Chorley Borough Council,,Early Intervention,Grants,3002,Net Expenditure or Balance,,grant,16/08/2017,123466,"5,435.00",Revenue,K Berry Ltd,16421
Chorley Borough Council,http://statistics.data.gov.uk/id/local-authority/30UE,Cost of Service,,Policy & Governance,Professional Fees,40063,Professional Fees,,cfs prize,16/08/2017,123434,400.00,Revenue,K Partington,76216
Chorley Borough Council,http://statistics.data.gov.uk/id/local-authority/30UE,Neighbourhoods,,Early Intervention,Pest Control,20039,Expenditure,,6 x Ficam W (HSE 5390) box of 10 x 15g - 59.45 per box = 356.70 10 x Ratimor Bromadiolone Maxi Blocks (BPR:UK-2012-06,04/08/2017,122825,543.06,Revenue,Killgerm Chemicals Ltd,16879
Chorley Borough Council,http://statistics.data.gov.uk/id/local-authority/30UE,Communications & Events,,Policy & Governance,Miscellaneous Expenses,40200,Expenditure,,Firework display for the Flower show,09/08/2017,122946,"1,500.00",Revenue,Komodo Fireworks Ltd,72809
Chorley Borough Council,http://statistics.data.gov.uk/id/local-authority/30UE,Control  Holding and Suspense,,Policy & Governance,General Balances,100,Other,,sal ded,16/08/2017,123155,"1,163.40",Revenue,Labour Councillors Association,17577
Chorley Borough Council,http://statistics.data.gov.uk/id/local-authority/30UE,Control  Holding and Suspense,,Policy & Governance,General Balances,100,Other Funds and Balance Sheet,,sal ded,30/08/2017,123646,"1,163.40",Revenue,Labour Councillors Association,17577
Chorley Borough Council,http://statistics.data.gov.uk/id/local-authority/30UE,ICT Services,,Customer & Digital,Internet Charges,40104,Expenditure,,"ISP annual agreement - year 5 of 5, incorporating RPI increase 01/04/17 to 31/03/18",04/08/2017,123120,"19,430.00",Revenue,Lancashire County Council,17758
Chorley Borough Council,http://statistics.data.gov.uk/id/local-authority/30UE,Street Services,,Business Development & Growth,External Contractor,40198,Net Expenditure or Balance,,Putting up and taking down of bunting for Adlington Carnival. June - July 2017.,09/08/2017,123173,"1,080.00",Revenue,Lancashire County Council,20027
Chorley Borough Council,http://statistics.data.gov.uk/id/local-authority/30UE,Budgets Not In Directorates,,Policy & Governance,Pensions Deficit Recovery Contributions,12003,Expenditure,,cay may and june,15/08/2017,123438,"34,337.39",Revenue,Lancashire County Council,18386
Chorley Borough Council,http://statistics.data.gov.uk/id/local-authority/30UE,Chorley Council,,Customer & Digital,Miscellaneous Expenses,40200,Supplies and Services,,Application for road closures for Chorley GP 2017,25/08/2017,123473,"2,264.51",Revenue,Lancashire County Council,20027
Chorley Borough Council,http://statistics.data.gov.uk/id/local-authority/30UE,ICT,,Customer & Digital,Computer Equipment-Purchase,40098,Expenditure,,BT Lancashire Services Delivery of NHS VRF to site and provisioned on dedicated router/switch This includes resources for,18/08/2017,123539,487.00,Revenue,Lancashire County Council,17758
Chorley Borough Council,http://statistics.data.gov.uk/id/local-authority/30UE,Chorley Borough Council,,Policy & Governance,Other Fees,40212,Miscellaneous Fees,,Four weekly payment for Meals on Wheels Service,09/08/2017,123300,912.45,Revenue,Lancashire Fayre,62967
Chorley Borough Council,http://statistics.data.gov.uk/id/local-authority/30UE,Budget Holder Control Code,,Policy & Governance,General Balances,100,Balance Sheet,Balance,ees,15/08/2017,122120,"42,461.50",Revenue,Lancashire Pensions Services,16696
Chorley Borough Council,http://statistics.data.gov.uk/id/local-authority/30UE,Creditors,,Policy & Governance,General Balances,100,Balance Sheet,,ers,15/08/2017,122120,"92,277.45",Revenue,Lancashire Pensions Services,16696
Chorley Borough Council,http://statistics.data.gov.uk/id/local-authority/30UE,Transformation Management,,Policy & Governance,Pensions Deficit Recovery Contributions,12003,Direct Employee Expenses,5001,deficit,15/08/2017,122120,"79,633.33",Revenue,Lancashire Pensions Services,16696
Chorley Borough Council,http://statistics.data.gov.uk/id/local-authority/30UE,Chorley Borough Council,,Policy & Governance,General Balances,100,Balance Sheet,,EES,23/08/2017,123166,"41,698.54",Revenue,Lancashire Pensions Services,16696
Chorley Borough Council,http://statistics.data.gov.uk/id/local-authority/30UE,General Fund Balance Sheet,,Policy & Governance,General Balances,100,Balance Sheet,,ERS,23/08/2017,123166,"92,115.80",Revenue,Lancashire Pensions Services,16696
Chorley Borough Council,http://statistics.data.gov.uk/id/local-authority/30UE,Chorley Borough Council,,Policy & Governance,Pensions Deficit Recovery Contributions,12003,Superannuation,,DEFICIT,23/08/2017,123166,"65,878.33",Revenue,Lancashire Pensions Services,16696
Chorley Borough Council,http://statistics.data.gov.uk/id/local-authority/30UE,General Fund Revenue Account,,Policy & Governance,Pensions Increase Act Payments,18005,Transfer Values Unfunded Schem,,strain,23/08/2017,123352,"7,622.39",Revenue,Lancashire Pensions Services,16696
Chorley Borough Council,http://statistics.data.gov.uk/id/local-authority/30UE,General Fund Revenue Account,,Policy & Governance,Pensions Increase Act Payments,18005,Transfer Values Unfunded Schem,,starin,23/08/2017,123352,"109,976.53",Revenue,Lancashire Pensions Services,16696
Chorley Borough Council,http://statistics.data.gov.uk/id/local-authority/30UE,Chorley Borough Council,,Policy & Governance,General Balances,100,Balance Sheet,,Balance Sheet,15/08/2017,123428,308.51,Revenue,Lancashire Pensions Services,16696
Chorley Borough Council,http://statistics.data.gov.uk/id/local-authority/30UE,Chorley Borough Council,,Policy & Governance,General Balances,100,Balance Sheet,,Balance Sheet,15/08/2017,123428,622.63,Revenue,Lancashire Pensions Services,16696
Chorley Borough Council,http://statistics.data.gov.uk/id/local-authority/30UE,Current Liabiities,,Policy & Governance,General Balances,100,Balance Sheet,Balance,ees,23/08/2017,123583,77.00,Revenue,Lancashire Pensions Services,16696
Chorley Borough Council,http://statistics.data.gov.uk/id/local-authority/30UE,Chorley Borough Council,,Policy & Governance,General Balances,100,Balance Sheet,,ERS,23/08/2017,123583,206.44,Revenue,Lancashire Pensions Services,16696
Chorley Borough Council,http://statistics.data.gov.uk/id/local-authority/30UE,"RO5 Cult, Env, Reg & Planning",,Customer & Digital,Clinical Waste Collection,50007,Cash,,"Disposal of clinical waste from Chorley household. April 2017 to March 2018. Yellow bag collections, approx. 550 per month.",16/08/2017,122894,"1,017.83",Revenue,Lancashire Teaching Hospitals NHS FT,19003
Chorley Borough Council,http://statistics.data.gov.uk/id/local-authority/30UE,Collection Fund Balance Sheet,,Policy & Governance,LCFA Precept,2011,Net Expenditure or Balance,,ctax,15/08/2017,123164,"238,081.00",Revenue,Lancs Combined Fire Authority,17768
Chorley Borough Council,http://statistics.data.gov.uk/id/local-authority/30UE,Collection Fund Revenue Accs,,Policy & Governance,NNDR Fire Share,2037,Other,,bus rates,15/08/2017,123164,"23,608.00",Revenue,Lancs Combined Fire Authority,17768
Chorley Borough Council,http://statistics.data.gov.uk/id/local-authority/30UE,Chorley Borough Council,,Policy & Governance,Car Leasing Payment,14100,Cash,,NAME REDACTED,30/08/2017,123554,"2,084.71",Revenue,LeasePlan UK Ltd T/A Automotive Leasing,65197
Chorley Borough Council,http://statistics.data.gov.uk/id/local-authority/30UE,Customer & Digital,,Policy & Governance,Car Leasing Payment,14100,Expenditure,,Car Lease ,30/08/2017,123554,194.31,Revenue,LeasePlan UK Ltd T/A Automotive Leasing,65197
Chorley Borough Council,http://statistics.data.gov.uk/id/local-authority/30UE,Input Tax,,Policy & Governance,Manual Control Account,1,Other,,Other,30/08/2017,123554,-194.31,Revenue,LeasePlan UK Ltd T/A Automotive Leasing,65197
Chorley Borough Council,http://statistics.data.gov.uk/id/local-authority/30UE,Deputy Chief Executive,,Policy & Governance,Car Leasing Payment,14100,Car Leasing,,NAME REDACTED,30/08/2017,123730,"3,409.44",Revenue,Lex Autolease Ltd,70682
Chorley Borough Council,http://statistics.data.gov.uk/id/local-authority/30UE,Deputy Chief Executive,,Policy & Governance,Car Leasing Payment,14100,Employee Expenses,,Car Lease ,30/08/2017,123730,277.82,Revenue,Lex Autolease Ltd,70682
Chorley Borough Council,http://statistics.data.gov.uk/id/local-authority/30UE,Input Tax,,Policy & Governance,Manual Control Account,1,Control,,Other,30/08/2017,123730,-277.82,Revenue,Lex Autolease Ltd,70682
Chorley Borough Council,http://statistics.data.gov.uk/id/local-authority/30UE,Chorley Borough Council,,Customer & Digital,Publications,40054,"Printing, Stationery & General",5026,ctax publication,18/08/2017,122937,377.00,Revenue,Lexis Nexis UK,16688
Chorley Borough Council,http://statistics.data.gov.uk/id/local-authority/30UE,General Fund Revenue Account,,Early Intervention,Play Events,40181,Supplies and Services,,Hire of wall for play day,16/08/2017,123391,500.00,Revenue,Lister Logic LTD,22431
Chorley Borough Council,http://statistics.data.gov.uk/id/local-authority/30UE,Chorley Borough Council,,Policy & Governance,Publicity - Advertising,40157,Supplies and Services,,Advert in magazine,18/08/2017,123471,287.50,Revenue,Live Magazines Ltd,76058
Chorley Borough Council,http://statistics.data.gov.uk/id/local-authority/30UE,Cost of Service,,Policy & Governance,Publicity - Advertising,40157,Miscellaneous Expenses,5034,Advert in magazine,18/08/2017,123476,287.50,Revenue,Live Magazines Ltd,76058
Chorley Borough Council,http://statistics.data.gov.uk/id/local-authority/30UE,Deputy Chief Executive,,Policy & Governance,External Contractor,40198,Expenditure,,"Build, materials and take down of show garden for the Chorley Flower Show",11/08/2017,123324,"1,490.79",Revenue,Living Gardens,76860
Chorley Borough Council,http://statistics.data.gov.uk/id/local-authority/30UE,Carol Russell,,Early Intervention,Stationery,40050,Stationery,,BX 5000 Lyreco Staples 26/6,04/08/2017,122729,0.32,Revenue,Lyreco UK Ltd,17623
Chorley Borough Council,http://statistics.data.gov.uk/id/local-authority/30UE,Chief Executives Office,,Early Intervention,Stationery,40050,Cash,,VERBATIM DVD-R PRINTABLE 4.GB 1X-16X - SPINDLE OF 25,04/08/2017,122729,102.96,Revenue,Lyreco UK Ltd,17623
Chorley Borough Council,http://statistics.data.gov.uk/id/local-authority/30UE,Carol Russell,,Early Intervention,Stationery,40050,Stationery,,Lyreco Crepe Masking Tape - 25Mm X 50M Roll,04/08/2017,122729,8.40,Revenue,Lyreco UK Ltd,17623
Chorley Borough Council,http://statistics.data.gov.uk/id/local-authority/30UE,Chief Executives Office,,Early Intervention,Stationery,40050,Cash,,Sellotape (pack of 6),04/08/2017,122729,1.32,Revenue,Lyreco UK Ltd,17623
Chorley Borough Council,http://statistics.data.gov.uk/id/local-authority/30UE,Carol Russell,,Early Intervention,Stationery,40050,Stationery,,hp343 2-PACK Tri-colour Original ink Cartridges 9BC332EE),04/08/2017,122729,47.98,Revenue,Lyreco UK Ltd,17623
Chorley Borough Council,http://statistics.data.gov.uk/id/local-authority/30UE,Chief Executives Office,,Early Intervention,Stationery,40050,Cash,,Lyreco Pink Highlighters - Pack Of 10,04/08/2017,122729,0.50,Revenue,Lyreco UK Ltd,17623
Chorley Borough Council,http://statistics.data.gov.uk/id/local-authority/30UE,Chorley Borough Council,,Early Intervention,Stationery,40050,Stationery,,LYRECO BUDGET ORANGE HIGHLIGHTERS - PACK OF 10,04/08/2017,122729,0.50,Revenue,Lyreco UK Ltd,17623
Chorley Borough Council,http://statistics.data.gov.uk/id/local-authority/30UE,Office Support Services,,Early Intervention,Stationery,40050,Cash,,Micron Stick Ball Point,04/08/2017,122729,4.50,Revenue,Lyreco UK Ltd,17623
Chorley Borough Council,http://statistics.data.gov.uk/id/local-authority/30UE,Chief Executive,,Early Intervention,Stationery,40050,Stationery,,Lyreco Plain Yellow Sticky Notes 125 X 75Mm - Pack Of 12 Pads,04/08/2017,122729,1.68,Revenue,Lyreco UK Ltd,17623
Chorley Borough Council,http://statistics.data.gov.uk/id/local-authority/30UE,Chief Executives Office,,Early Intervention,Stationery,40050,Cash,,Lyreco Plain Yellow Sticky Notes 75 X 75Mm - Pack Of 12 Pads,04/08/2017,122729,5.28,Revenue,Lyreco UK Ltd,17623
Chorley Borough Council,http://statistics.data.gov.uk/id/local-authority/30UE,Carol Russell,,Early Intervention,Stationery,40050,Stationery,,Lyreco Budget Notebook A4 60 gsm ruled spiral - Pack of 10,04/08/2017,122729,4.40,Revenue,Lyreco UK Ltd,17623
Chorley Borough Council,http://statistics.data.gov.uk/id/local-authority/30UE,Chief Executives Office,,Early Intervention,Stationery,40050,Cash,,LYRECO BUDGET WHITE 8 X 5INCH SHORTHAND NOTEBOOKS (RULED) - PACK OF 20(X80 SHTS),04/08/2017,122729,4.80,Revenue,Lyreco UK Ltd,17623
Chorley Borough Council,http://statistics.data.gov.uk/id/local-authority/30UE,Carol Russell,,Early Intervention,Stationery,40050,Stationery,,LYRECO WHITE C5 SELF SEAL WINDOW ENVELOPES 90GSM - BOX OF 500,04/08/2017,122729,32.08,Revenue,Lyreco UK Ltd,17623
Chorley Borough Council,http://statistics.data.gov.uk/id/local-authority/30UE,General Fund Revenue Account,,Early Intervention,Stationery,40050,Cash,,C5 white envelope,04/08/2017,122729,29.65,Revenue,Lyreco UK Ltd,17623
Chorley Borough Council,http://statistics.data.gov.uk/id/local-authority/30UE,Carol Russell,,Early Intervention,Stationery,40050,Stationery,,A4 Laminating Pouches Gloss,04/08/2017,122729,4.92,Revenue,Lyreco UK Ltd,17623
Chorley Borough Council,http://statistics.data.gov.uk/id/local-authority/30UE,General Fund Revenue Account,,Early Intervention,Stationery,40050,Cash,,Lyreco Budget A4 Multi-Punched Plastic Pockets 55 Microns - Pack Of 100,04/08/2017,122729,7.05,Revenue,Lyreco UK Ltd,17623
Chorley Borough Council,http://statistics.data.gov.uk/id/local-authority/30UE,Carol Russell,,Early Intervention,Stationery,40050,Stationery,,Rapid 23/10 staples (box of 1000),04/08/2017,122729,2.33,Revenue,Lyreco UK Ltd,17623
Chorley Borough Council,http://statistics.data.gov.uk/id/local-authority/30UE,General Fund Revenue Account,,Early Intervention,Stationery,40050,Cash,,23/8 staples,04/08/2017,122729,2.06,Revenue,Lyreco UK Ltd,17623
Chorley Borough Council,http://statistics.data.gov.uk/id/local-authority/30UE,Management & Administration,1009,Customer & Digital,Grounds Maintenance Contractor,20043,Expenditure,,For various tree works as listed in Invoice 21,23/08/2017,123485,"3,780.00",Revenue,M J Walker,62044
Chorley Borough Council,http://statistics.data.gov.uk/id/local-authority/30UE,Capital Fund,,Early Intervention,Grants,3002,Capital Expenditure,,ADDRESS REDACTED,02/08/2017,122920,"3,300.00",Revenue,M.J Park Building Contractors,20367
Chorley Borough Council,http://statistics.data.gov.uk/id/local-authority/30UE,Budget Holder Control Code,,Early Intervention,Grants,3002,Other,,ADDRESS REDACTED,25/08/2017,123578,"4,065.00",Revenue,M.J Park Building Contractors,20367
Chorley Borough Council,http://statistics.data.gov.uk/id/local-authority/30UE,Chorley Borough Council,,Customer & Digital,Supplies-Grounds Maintenance,40025,Expenditure,,7ft upright (FOT- 869),30/08/2017,123732,312.00,Revenue,Mark Harrod Ltd,76794
Chorley Borough Council,http://statistics.data.gov.uk/id/local-authority/30UE,Chorley Borough Council,,Customer & Digital,Supplies-Grounds Maintenance,40025,Net Expenditure or Balance,,21ft crossbar - (FOT - 869),30/08/2017,123732,350.00,Revenue,Mark Harrod Ltd,76794
Chorley Borough Council,http://statistics.data.gov.uk/id/local-authority/30UE,Customer & Digital,,Customer & Digital,Supplies-Grounds Maintenance,40025,Expenditure,,Carriage to; Chorley Council Depot Bengal Street Chorley PR7 1SA,30/08/2017,123732,100.00,Revenue,Mark Harrod Ltd,76794
Chorley Borough Council,http://statistics.data.gov.uk/id/local-authority/30UE,Chorley Borough Council,,Policy & Governance,Miscellaneous Expenses,40200,Net Expenditure or Balance,,Photography at 8 council events throughout 2017 as listed in the quote plus Ambulance Hall interior,11/08/2017,122655,350.00,Revenue,Martin Birchall Photography,22503
Chorley Borough Council,http://statistics.data.gov.uk/id/local-authority/30UE,General Fund Revenue Account,,Policy & Governance,Miscellaneous Expenses,40200,Miscellaneous Expenses,5034,Photography at 8 council events throughout 2017 as listed in the quote plus Ambulance Hall interior,11/08/2017,123290,300.00,Revenue,Martin Birchall Photography,22503
Chorley Borough Council,http://statistics.data.gov.uk/id/local-authority/30UE,Chorley Borough Council,,Policy & Governance,Miscellaneous Expenses,40200,Expenditure,,Gardening theatre at the Flower Show plus expenses,30/08/2017,123716,"2,122.31",Revenue,Martin Fish Ltd,76761
Chorley Borough Council,http://statistics.data.gov.uk/id/local-authority/30UE,Asset Management,,Business Development & Growth,Planned Maintenance,20006,Expenditure,,Annual order for monitoring starting with Apr-June 2017,23/08/2017,123416,"1,803.75",Revenue,Maxigiene Environmental Services Ltd,67160
Chorley Borough Council,http://statistics.data.gov.uk/id/local-authority/30UE,Streetscene & Leisure Contract,,Customer & Digital,Supplies-Grounds Maintenance,40025,Expenditure,,Street name plates for : Hollington Close @  31.88 Woodhart Lane @  28.46 Empress Way @  26.18 Gib Lane @  26.18 ,25/08/2017,123453,283.46,Revenue,Midland Signs (Leicester) Ltd,16606
Chorley Borough Council,http://statistics.data.gov.uk/id/local-authority/30UE,Management & Administration,,Customer & Digital,Supplies-Grounds Maintenance,40025,Expenditure,,Supplied various troughs and hanging baskets,09/08/2017,122171,"6,136.34",Revenue,Midstream (West Lancs) Ltd,20873
Chorley Borough Council,http://statistics.data.gov.uk/id/local-authority/30UE,Housing,,Early Intervention,Grants,3002,Capital Expenditure,,ADDRESS REDACTED,04/08/2017,122921,"18,041.30",Revenue,Mint Northwest Ltd,65607
Chorley Borough Council,http://statistics.data.gov.uk/id/local-authority/30UE,Housing,,Early Intervention,Grants,3002,Other,,ADDRESS REDACTED,25/08/2017,123579,"15,945.38",Revenue,Mint Northwest Ltd,65607
Chorley Borough Council,http://statistics.data.gov.uk/id/local-authority/30UE,Early Intervention & Support,,Early Intervention,External Contractor,40198,Expenditure,,adaption PR7 4RN,09/08/2017,123209,640.00,Revenue,Mobility Care Services,70841
Chorley Borough Council,http://statistics.data.gov.uk/id/local-authority/30UE,Customer  Advice Services,,Early Intervention,External Contractor,40198,Cash,,ADAPTION,09/08/2017,123210,360.00,Revenue,Mobility Care Services,70841
Chorley Borough Council,http://statistics.data.gov.uk/id/local-authority/30UE,Martin Sample,,Early Intervention,External Contractor,40198,Miscellaneous Expenses,5034,ADAPTION PR7 4PA,09/08/2017,123211,900.00,Revenue,Mobility Care Services,70841
Chorley Borough Council,http://statistics.data.gov.uk/id/local-authority/30UE,Customer  Advice Services,,Early Intervention,External Contractor,40198,Cash,,ADAPTION PR7 1PH,09/08/2017,123212,360.00,Revenue,Mobility Care Services,70841
Chorley Borough Council,http://statistics.data.gov.uk/id/local-authority/30UE,Martin Sample,,Early Intervention,External Contractor,40198,Miscellaneous Expenses,5034,ADAPTION PR7 3EQ,09/08/2017,123213,270.00,Revenue,Mobility Care Services,70841
Chorley Borough Council,http://statistics.data.gov.uk/id/local-authority/30UE,Customer  Advice Services,,Early Intervention,External Contractor,40198,Cash,,ADAPTION PR7 6AH,09/08/2017,123214,250.00,Revenue,Mobility Care Services,70841
Chorley Borough Council,http://statistics.data.gov.uk/id/local-authority/30UE,Private Sector Housing Renewal,1073,Early Intervention,External Contractor,40198,Expenditure,,ADAPTION PR6 7RE,09/08/2017,123221,940.00,Revenue,Mobility Care Services,70841
Chorley Borough Council,http://statistics.data.gov.uk/id/local-authority/30UE,Net Cost of Service,,Customer & Digital,Training Course Fees,17010,Expenditure,,Lantra tractor and flail training,30/08/2017,123514,"1,180.00",Revenue,Morton Training Limited,76873
Chorley Borough Council,http://statistics.data.gov.uk/id/local-authority/30UE,Communications & Events,,Customer & Digital,Supplies-Grounds Maintenance,40025,Supplies for Stores,,Re-grading the lawn around the tree stump in front of Astley Hall,16/08/2017,123031,270.00,Revenue,Mr Stephen Scambler,16710
Chorley Borough Council,http://statistics.data.gov.uk/id/local-authority/30UE,Customer & Digital,,Customer & Digital,Grounds Maintenance Contractor,20043,Grounds Maintenance,,Work to be carried out at Astley Village Community Centre. Grading the grass verge off and using a banksman,16/08/2017,123032,380.00,Revenue,Mr Stephen Scambler,16710
Chorley Borough Council,http://statistics.data.gov.uk/id/local-authority/30UE,Martin Sample,,Early Intervention,External Contractor,40198,Expenditure,,Provision of Energy Switching Support Service July 2017,11/08/2017,123342,549.29,Revenue,Mrs Heather Shaw,65606
Chorley Borough Council,http://statistics.data.gov.uk/id/local-authority/30UE,Income and Expenditure Account,,Policy & Governance,Other Contributions,40145,Grants,,Flower show wristbands,11/08/2017,123331,"1,311.00",Revenue,Munco International T/A Adband,60837
Chorley Borough Council,http://statistics.data.gov.uk/id/local-authority/30UE,Planning Services Unit,,Customer & Digital,Miscellaneous Expenses,40200,Supplies and Services,,Accessing Viability Report,23/08/2017,123070,"3,500.00",Revenue,Murray Lloyd Associates Ltd,76626
Chorley Borough Council,http://statistics.data.gov.uk/id/local-authority/30UE,Planning Services,,Customer & Digital,Miscellaneous Expenses,40200,Miscellaneous Expenses,5034,Expenses,23/08/2017,123070,200.00,Revenue,Murray Lloyd Associates Ltd,76626
Chorley Borough Council,http://statistics.data.gov.uk/id/local-authority/30UE,Chorley Borough Council,,Policy & Governance,Miscellaneous Expenses,40200,Supplies and Services,,"4,000 x A5 Flower Show programmes Estimate No: 13283",09/08/2017,123007,958.00,Revenue,N B Colour Print Ltd,17917
Chorley Borough Council,http://statistics.data.gov.uk/id/local-authority/30UE,Chorley Borough Council,,Chief Executive,Stationery,40050,Supplies and Services,,10 Sundry Receipt Books as per Estimate  Number: 13523. The numbering needs to start at number  192601 - 194600,23/08/2017,123563,262.00,Revenue,N B Colour Print Ltd,17917
Chorley Borough Council,http://statistics.data.gov.uk/id/local-authority/30UE,Performance,,Policy & Governance,Postages,40082,Expenditure,,"Quarterly Rental on One NFS330 Franking Machine, Serial Number NE8002360 / DA 1243567448 and One 2kg scale",02/08/2017,122991,631.50,Revenue,Nationwide Capital Finance Ltd,21739
Chorley Borough Council,http://statistics.data.gov.uk/id/local-authority/30UE,Cost of Service,,Customer & Digital,External Contractor,40198,Contracting Expenses & Fees,,Removal of fly tipped Asbestos Material from 2 Sites (Coppull and Charnock Richard) SECOND PART OF ORDER,18/08/2017,123261,"1,170.00",Revenue,Neales Waste Management,17583
Chorley Borough Council,http://statistics.data.gov.uk/id/local-authority/30UE,Chorley Borough Council,,Business Development & Growth,Refuse Collection,20037,Net Expenditure or Balance,,Market Walk Yard 1 - General Waste compacted - 35 Yard roll on/roll off skip from compactor @64.83 per exch est 52 per year,23/08/2017,123266,129.66,Revenue,Neales Waste Management,17583
Chorley Borough Council,http://statistics.data.gov.uk/id/local-authority/30UE,General Fund Revenue Account,,Business Development & Growth,Refuse Collection,20037,Cash,,Market Walk Yard 1 general waste compacted - 35 yard roll on/roll off skip from compactor disposal costs per tonne,23/08/2017,123266,"2,268.53",Revenue,Neales Waste Management,17583
Chorley Borough Council,http://statistics.data.gov.uk/id/local-authority/30UE,Chorley Borough Council,,Early Intervention,Miscellaneous Expenses,40200,Net Expenditure or Balance,,skip day clayton le woods fidlers lane,09/08/2017,123269,397.61,Revenue,Neales Waste Management,17583
Chorley Borough Council,http://statistics.data.gov.uk/id/local-authority/30UE,Customer & Digital,,Customer & Digital,Refuse Collection,20037,Expenditure,,Exchange of 20 Street sweeping skips at price quoted from Bengal St depot PR7 1SA,18/08/2017,123270,972.45,Revenue,Neales Waste Management,17583
Chorley Borough Council,http://statistics.data.gov.uk/id/local-authority/30UE,Management & Administration,1009,Customer & Digital,Refuse Collection,20037,Expenditure,,Exchange of 35yrd Street cleaning and flytip skip at price quoted from Bengal St depot PR7 1SA,18/08/2017,123270,"1,813.50",Revenue,Neales Waste Management,17583
Chorley Borough Council,http://statistics.data.gov.uk/id/local-authority/30UE,Customer & Digital,,Customer & Digital,Refuse Collection,20037,Expenditure,,Exchange of 35yrd compostable green waste skip at price quoted from Bengal St depot PR7 1SA,18/08/2017,123270,70.00,Revenue,Neales Waste Management,17583
Chorley Borough Council,http://statistics.data.gov.uk/id/local-authority/30UE,Capital Fund,,Business Development & Growth,Main Contractor,3007,Capital Expenditure,,Resurface Footpaths at Chorley Cemetery,16/08/2017,123076,"45,809.33",Revenue,Newground CIC,22064
Chorley Borough Council,http://statistics.data.gov.uk/id/local-authority/30UE,Business Development Growth,,Business Development & Growth,Grants To Other Organisations,40127,Expenditure,,business grant,23/08/2017,123461,250.00,Revenue,NAME REDACTED,76881
Chorley Borough Council,http://statistics.data.gov.uk/id/local-authority/30UE,Central Services,,Policy & Governance,Other Contributions,40145,Supplies and Services,,mayors charity,11/08/2017,123309,"6,000.00",Revenue,North West Air Ambulance,63515
Chorley Borough Council,http://statistics.data.gov.uk/id/local-authority/30UE,Central and Support Apportiona,,Policy & Governance,Laundry,40042,Cash,,laundry service August 2017,18/08/2017,123519,581.50,Revenue,North West Ironing & Laundry Centre,20450
Chorley Borough Council,http://statistics.data.gov.uk/id/local-authority/30UE,Management & Administration,1009,Customer & Digital,Vehicle Maintenance,30045,Expenditure,,Please supply 12 x Poly Wire sweeper brushes for our Schmidt Small Mechanical Sweepers.  Product Code = 71107/1-HD,30/08/2017,123741,416.70,Revenue,Northern Municipal Spares Ltd,17752
Chorley Borough Council,http://statistics.data.gov.uk/id/local-authority/30UE,Customer Transformation,,Customer & Digital,Service Fees,40056,Expenditure,,Docs On Line Managed Service � Service Charges 01 April 2017 to 31 March 2018,18/08/2017,123346,"3,800.00",Revenue,Northgate Public Services (UK) Limited,18285
Chorley Borough Council,http://statistics.data.gov.uk/id/local-authority/30UE,Chorley Borough Council,,Customer & Digital,Computer - Support Services,40111,Cash,,Fixed Term Support Service for 3 years commencing 01st April 2017 Info @ Work (Anite) 400 users including: COLD Graphical,16/08/2017,123398,"8,216.00",Revenue,Northgate Public Services (UK) Limited,18285
Chorley Borough Council,http://statistics.data.gov.uk/id/local-authority/30UE,Chorley Borough Council,,Customer & Digital,Hire Of Vehicles and Plant,30028,Contrct Hire & Operating Lease,,Hire of transit van as per discussion with NAME REDACTED from 26/05/2017 through to 16/06/2017 at price quoted,18/08/2017,123038,271.13,Revenue,Northgate Vehicle Hire (NW) Ltd,17360
Chorley Borough Council,http://statistics.data.gov.uk/id/local-authority/30UE,Budgets Not In Directorates,,Business Development & Growth,Electricity,20013,Expenditure,,market walk,04/08/2017,123094,"1,051.18",Revenue,Npower Commercial Gas,16814
Chorley Borough Council,http://statistics.data.gov.uk/id/local-authority/30UE,Waste & Streetscene Services,,Business Development & Growth,Electricity,20013,Expenditure,,harpers lane,04/08/2017,123096,2.78,Revenue,Npower Commercial Gas,16814
Chorley Borough Council,http://statistics.data.gov.uk/id/local-authority/30UE,Waste & Streetscene Services,,Business Development & Growth,Electricity,20013,Expenditure,,tatton rec,04/08/2017,123096,8.71,Revenue,Npower Commercial Gas,16814
Chorley Borough Council,http://statistics.data.gov.uk/id/local-authority/30UE,Waste & Streetscene Services,,Business Development & Growth,Electricity,20013,Expenditure,,gillet playing fields,04/08/2017,123096,7.42,Revenue,Npower Commercial Gas,16814
Chorley Borough Council,http://statistics.data.gov.uk/id/local-authority/30UE,Waste & Streetscene Services,,Business Development & Growth,Electricity,20013,Expenditure,,king geroge,04/08/2017,123096,4.40,Revenue,Npower Commercial Gas,16814
Chorley Borough Council,http://statistics.data.gov.uk/id/local-authority/30UE,Chorley Borough Council,,Business Development & Growth,Electricity,20013,Expenditure,,astley hall farm house,04/08/2017,123096,64.44,Revenue,Npower Commercial Gas,16814
Chorley Borough Council,http://statistics.data.gov.uk/id/local-authority/30UE,Chorley Borough Council,,Business Development & Growth,Electricity,20013,Expenditure,,astley hall,04/08/2017,123096,61.41,Revenue,Npower Commercial Gas,16814
Chorley Borough Council,http://statistics.data.gov.uk/id/local-authority/30UE,General Fund Revenue Account,,Business Development & Growth,Electricity,20013,Expenditure,,eaves green,04/08/2017,123096,106.68,Revenue,Npower Commercial Gas,16814
Chorley Borough Council,http://statistics.data.gov.uk/id/local-authority/30UE,Budget Holder Control Code,,Business Development & Growth,Electricity,20013,Expenditure,,35-39 market street,04/08/2017,123096,70.41,Revenue,Npower Commercial Gas,16814
Chorley Borough Council,http://statistics.data.gov.uk/id/local-authority/30UE,Chorley Borough Council,,Business Development & Growth,Electricity,20013,Expenditure,,35-39 market street,04/08/2017,123096,26.27,Revenue,Npower Commercial Gas,16814
Chorley Borough Council,http://statistics.data.gov.uk/id/local-authority/30UE,Budget Holder Control Code,,Business Development & Growth,Electricity,20013,Expenditure,,35-39 market street,04/08/2017,123096,51.52,Revenue,Npower Commercial Gas,16814
Chorley Borough Council,http://statistics.data.gov.uk/id/local-authority/30UE,Waste & Streetscene Services,,Business Development & Growth,Electricity,20013,Expenditure,,coronation rec,04/08/2017,123096,10.79,Revenue,Npower Commercial Gas,16814
Chorley Borough Council,http://statistics.data.gov.uk/id/local-authority/30UE,Chorley Borough Council,,Business Development & Growth,Electricity,20013,Expenditure,,astley vill cc,04/08/2017,123096,124.70,Revenue,Npower Commercial Gas,16814
Chorley Borough Council,http://statistics.data.gov.uk/id/local-authority/30UE,Cost of Service,,Business Development & Growth,Electricity,20013,Expenditure,,astley hall coach house,04/08/2017,123096,826.21,Revenue,Npower Commercial Gas,16814
Chorley Borough Council,http://statistics.data.gov.uk/id/local-authority/30UE,Chorley Borough Council,,Business Development & Growth,Electricity,20013,Expenditure,,astlye hall cottage,04/08/2017,123096,67.70,Revenue,Npower Commercial Gas,16814
Chorley Borough Council,http://statistics.data.gov.uk/id/local-authority/30UE,Customer & Digital,,Business Development & Growth,Electricity,20013,Expenditure,,cemetry chapel,04/08/2017,123096,2.66,Revenue,Npower Commercial Gas,16814
Chorley Borough Council,http://statistics.data.gov.uk/id/local-authority/30UE,Jo Oliver,,Business Development & Growth,Electricity,20013,Expenditure,,cemetry chapel,04/08/2017,123096,2.06,Revenue,Npower Commercial Gas,16814
Chorley Borough Council,http://statistics.data.gov.uk/id/local-authority/30UE,Customer & Digital,,Business Development & Growth,Electricity,20013,Expenditure,,cemetries office,04/08/2017,123096,47.45,Revenue,Npower Commercial Gas,16814
Chorley Borough Council,http://statistics.data.gov.uk/id/local-authority/30UE,Cost of Service,,Business Development & Growth,Electricity,20013,Expenditure,,astley park,04/08/2017,123096,247.24,Revenue,Npower Commercial Gas,16814
Chorley Borough Council,http://statistics.data.gov.uk/id/local-authority/30UE,Cost of Service,,Business Development & Growth,Electricity,20013,Expenditure,,market compactor,04/08/2017,123096,60.60,Revenue,Npower Commercial Gas,16814
Chorley Borough Council,http://statistics.data.gov.uk/id/local-authority/30UE,Customer & Digital,,Business Development & Growth,Electricity,20013,Expenditure,,king geroge,04/08/2017,123096,6.99,Revenue,Npower Commercial Gas,16814
Chorley Borough Council,http://statistics.data.gov.uk/id/local-authority/30UE,Cost of Service,,Business Development & Growth,Electricity,20013,Expenditure,,portacabin stall,04/08/2017,123096,2.66,Revenue,Npower Commercial Gas,16814
Chorley Borough Council,http://statistics.data.gov.uk/id/local-authority/30UE,Cost of Service,,Business Development & Growth,Electricity,20013,Expenditure,,cotswold house,04/08/2017,123096,349.14,Revenue,Npower Commercial Gas,16814
Chorley Borough Council,http://statistics.data.gov.uk/id/local-authority/30UE,Cost of Service,,Business Development & Growth,Electricity,20013,Expenditure,,cotsolwd house,04/08/2017,123096,138.85,Revenue,Npower Commercial Gas,16814
Chorley Borough Council,http://statistics.data.gov.uk/id/local-authority/30UE,Cost of Service,,Business Development & Growth,Electricity,20013,Expenditure,,cotsolw house,04/08/2017,123096,78.79,Revenue,Npower Commercial Gas,16814
Chorley Borough Council,http://statistics.data.gov.uk/id/local-authority/30UE,Recreation & Sport,1037,Business Development & Growth,Electricity,20013,Expenditure,,buttermere,04/08/2017,123096,67.82,Revenue,Npower Commercial Gas,16814
Chorley Borough Council,http://statistics.data.gov.uk/id/local-authority/30UE,Health & Wellbeing,,Business Development & Growth,Electricity,20013,Expenditure,,buckshaw cc,04/08/2017,123096,50.36,Revenue,Npower Commercial Gas,16814
Chorley Borough Council,http://statistics.data.gov.uk/id/local-authority/30UE,Chorley Borough Council,,Business Development & Growth,Electricity,20013,Expenditure,,buckshaw cc,04/08/2017,123096,50.81,Revenue,Npower Commercial Gas,16814
Chorley Borough Council,http://statistics.data.gov.uk/id/local-authority/30UE,Health & Wellbeing,,Business Development & Growth,Electricity,20013,Expenditure,,buckshaw cc,04/08/2017,123096,54.08,Revenue,Npower Commercial Gas,16814
Chorley Borough Council,http://statistics.data.gov.uk/id/local-authority/30UE,Waste & Streetscene Services,,Business Development & Growth,Electricity,20013,Expenditure,,rangeltts rec,04/08/2017,123096,11.61,Revenue,Npower Commercial Gas,16814
Chorley Borough Council,http://statistics.data.gov.uk/id/local-authority/30UE,RO2 Highways & Transport Serv,,Business Development & Growth,Electricity,20013,Energy Costs,,car parks,16/08/2017,123335,111.12,Revenue,Npower Commercial Gas,16814
Chorley Borough Council,http://statistics.data.gov.uk/id/local-authority/30UE,Neighbourhoods,,Business Development & Growth,Electricity,20013,Energy Costs,,cctv,16/08/2017,123335,272.18,Revenue,Npower Commercial Gas,16814
Chorley Borough Council,http://statistics.data.gov.uk/id/local-authority/30UE,Civic Services,,Business Development & Growth,Electricity,20013,Energy Costs,,union st,16/08/2017,123336,"3,317.46",Revenue,Npower Commercial Gas,16814
Chorley Borough Council,http://statistics.data.gov.uk/id/local-authority/30UE,General Fund Revenue Account,,Business Development & Growth,Electricity,20013,Energy Costs,,bengal st,16/08/2017,123336,710.42,Revenue,Npower Commercial Gas,16814
Chorley Borough Council,http://statistics.data.gov.uk/id/local-authority/30UE,Chorley Borough Council,,Business Development & Growth,Electricity,20013,Energy Costs,,town hall,16/08/2017,123336,"1,643.51",Revenue,Npower Commercial Gas,16814
Chorley Borough Council,http://statistics.data.gov.uk/id/local-authority/30UE,Cost of Service,,Business Development & Growth,Electricity,20013,Expenditure,,Tunley,16/08/2017,123336,137.67,Revenue,Npower Commercial Gas,16814
Chorley Borough Council,http://statistics.data.gov.uk/id/local-authority/30UE,Waste & Streetscene Services,,Business Development & Growth,Electricity,20013,Expenditure,,harpers lane rec,30/08/2017,123734,3.21,Revenue,Npower Commercial Gas,16814
Chorley Borough Council,http://statistics.data.gov.uk/id/local-authority/30UE,Community Parks & Open Spaces,,Business Development & Growth,Electricity,20013,Expenditure,,tatton rec,30/08/2017,123734,7.72,Revenue,Npower Commercial Gas,16814
Chorley Borough Council,http://statistics.data.gov.uk/id/local-authority/30UE,Comprehensive I&E Statement,,Business Development & Growth,Electricity,20013,Expenditure,,gillet playing fileds,30/08/2017,123734,4.62,Revenue,Npower Commercial Gas,16814
Chorley Borough Council,http://statistics.data.gov.uk/id/local-authority/30UE,Community Parks & Open Spaces,,Business Development & Growth,Electricity,20013,Expenditure,,king geroge,30/08/2017,123734,3.91,Revenue,Npower Commercial Gas,16814
Chorley Borough Council,http://statistics.data.gov.uk/id/local-authority/30UE,Business Development Growth,,Business Development & Growth,Electricity,20013,Expenditure,,markets,30/08/2017,123734,"2,358.31",Revenue,Npower Commercial Gas,16814
Chorley Borough Council,http://statistics.data.gov.uk/id/local-authority/30UE,Markets & Town Centre,,Business Development & Growth,Electricity,20013,Expenditure,,markets,30/08/2017,123734,"4,055.41",Revenue,Npower Commercial Gas,16814
Chorley Borough Council,http://statistics.data.gov.uk/id/local-authority/30UE,Chorley Borough Council,,Business Development & Growth,Electricity,20013,Expenditure,,astley hall farm,30/08/2017,123734,78.90,Revenue,Npower Commercial Gas,16814
Chorley Borough Council,http://statistics.data.gov.uk/id/local-authority/30UE,Communications & Events,,Business Development & Growth,Electricity,20013,Expenditure,,astley hall,30/08/2017,123734,81.23,Revenue,Npower Commercial Gas,16814
Chorley Borough Council,http://statistics.data.gov.uk/id/local-authority/30UE,Chorley Borough Council,,Business Development & Growth,Electricity,20013,Expenditure,,eaves green,30/08/2017,123734,110.66,Revenue,Npower Commercial Gas,16814
Chorley Borough Council,http://statistics.data.gov.uk/id/local-authority/30UE,Chris Moister,,Business Development & Growth,Electricity,20013,Expenditure,,35-39 market street,30/08/2017,123734,74.52,Revenue,Npower Commercial Gas,16814
Chorley Borough Council,http://statistics.data.gov.uk/id/local-authority/30UE,Chorley Borough Council,,Business Development & Growth,Electricity,20013,Expenditure,,35-39 market street,30/08/2017,123734,26.22,Revenue,Npower Commercial Gas,16814
Chorley Borough Council,http://statistics.data.gov.uk/id/local-authority/30UE,Chris Moister,,Business Development & Growth,Electricity,20013,Expenditure,,35-39 market street,30/08/2017,123734,54.48,Revenue,Npower Commercial Gas,16814
Chorley Borough Council,http://statistics.data.gov.uk/id/local-authority/30UE,Waste & Streetscene Services,,Business Development & Growth,Electricity,20013,Expenditure,,coronoation rec,30/08/2017,123734,11.27,Revenue,Npower Commercial Gas,16814
Chorley Borough Council,http://statistics.data.gov.uk/id/local-authority/30UE,"RO5 Cult, Env, Reg & Planning",,Business Development & Growth,Electricity,20013,Expenditure,,astley vill cc,30/08/2017,123734,100.39,Revenue,Npower Commercial Gas,16814
Chorley Borough Council,http://statistics.data.gov.uk/id/local-authority/30UE,Chorley Borough Council,,Business Development & Growth,Electricity,20013,Expenditure,,astley coach house,30/08/2017,123734,"1,079.19",Revenue,Npower Commercial Gas,16814
Chorley Borough Council,http://statistics.data.gov.uk/id/local-authority/30UE,David Tetlow,,Business Development & Growth,Electricity,20013,Expenditure,,astley hall,30/08/2017,123734,70.25,Revenue,Npower Commercial Gas,16814
Chorley Borough Council,http://statistics.data.gov.uk/id/local-authority/30UE,Jo Oliver,,Business Development & Growth,Electricity,20013,Expenditure,,cemterey chapel,30/08/2017,123734,2.75,Revenue,Npower Commercial Gas,16814
Chorley Borough Council,http://statistics.data.gov.uk/id/local-authority/30UE,Customer & Digital,,Business Development & Growth,Electricity,20013,Expenditure,,cemtrey chapel,30/08/2017,123734,2.13,Revenue,Npower Commercial Gas,16814
Chorley Borough Council,http://statistics.data.gov.uk/id/local-authority/30UE,Jo Oliver,,Business Development & Growth,Electricity,20013,Expenditure,,cemtries office,30/08/2017,123734,32.41,Revenue,Npower Commercial Gas,16814
Chorley Borough Council,http://statistics.data.gov.uk/id/local-authority/30UE,Cost of Service,,Business Development & Growth,Electricity,20013,Expenditure,,astley park changing rooms,30/08/2017,123734,252.35,Revenue,Npower Commercial Gas,16814
Chorley Borough Council,http://statistics.data.gov.uk/id/local-authority/30UE,Cost of Service,,Business Development & Growth,Electricity,20013,Expenditure,,market compactor,30/08/2017,123734,74.80,Revenue,Npower Commercial Gas,16814
Chorley Borough Council,http://statistics.data.gov.uk/id/local-authority/30UE,People,,Business Development & Growth,Electricity,20013,Expenditure,,king geroge playing fileds,30/08/2017,123734,7.39,Revenue,Npower Commercial Gas,16814
Chorley Borough Council,http://statistics.data.gov.uk/id/local-authority/30UE,Business Development Growth,,Business Development & Growth,Electricity,20013,Expenditure,,portacabin stall,30/08/2017,123734,2.75,Revenue,Npower Commercial Gas,16814
Chorley Borough Council,http://statistics.data.gov.uk/id/local-authority/30UE,Chorley Borough Council,,Business Development & Growth,Electricity,20013,Expenditure,,cotswold house,30/08/2017,123734,385.57,Revenue,Npower Commercial Gas,16814
Chorley Borough Council,http://statistics.data.gov.uk/id/local-authority/30UE,Lorraine McIntyre,,Business Development & Growth,Electricity,20013,Expenditure,,cotswold house,30/08/2017,123734,136.48,Revenue,Npower Commercial Gas,16814
Chorley Borough Council,http://statistics.data.gov.uk/id/local-authority/30UE,Chorley Borough Council,,Business Development & Growth,Electricity,20013,Expenditure,,cotsowlh house,30/08/2017,123734,56.35,Revenue,Npower Commercial Gas,16814
Chorley Borough Council,http://statistics.data.gov.uk/id/local-authority/30UE,Early Intervention & Support,,Business Development & Growth,Electricity,20013,Expenditure,,buttermere,30/08/2017,123734,71.42,Revenue,Npower Commercial Gas,16814
Chorley Borough Council,http://statistics.data.gov.uk/id/local-authority/30UE,Chorley Borough Council,,Business Development & Growth,Electricity,20013,Expenditure,,buckshaw cc,30/08/2017,123734,56.12,Revenue,Npower Commercial Gas,16814
Chorley Borough Council,http://statistics.data.gov.uk/id/local-authority/30UE,D Walmsley A Bothamley,,Business Development & Growth,Electricity,20013,Expenditure,,rangletts rec,30/08/2017,123734,12.32,Revenue,Npower Commercial Gas,16814
Chorley Borough Council,http://statistics.data.gov.uk/id/local-authority/30UE,Markets & Town Centre,,Business Development & Growth,External Contractors,50008,Expenditure,,"Provision of off street car park enforcement, cash collection, cash  counting facilities and third party bulk cash collections April 17 ",04/08/2017,123100,"4,147.09",Revenue,NSL Limited,67253
Chorley Borough Council,http://statistics.data.gov.uk/id/local-authority/30UE,Markets & Town Centre,,Business Development & Growth,External Contractors,50008,Expenditure,,"Vari fee for extra enforcement (May, June, July, August & Sept 17)",04/08/2017,123101,773.50,Revenue,NSL Limited,67253
Chorley Borough Council,http://statistics.data.gov.uk/id/local-authority/30UE,Lee Hurst,,Policy & Governance,Manual Control Account,1,Other Subjective Codes,,refund,30/08/2017,CRREF66,"4,111.62",Revenue,NSL Limited,67253
Chorley Borough Council,http://statistics.data.gov.uk/id/local-authority/30UE,Planning & Development Service,,Customer & Digital,Fixtures & Fittings - Purchase,20027,Fixtures and Fittings,,4 wooden planters - 1m x 1m x 2`6``,16/08/2017,123047,"1,500.00",Revenue,Nuchoice Limited,75454
Chorley Borough Council,http://statistics.data.gov.uk/id/local-authority/30UE,Budgets Not In Directorates,,Business Development & Growth,Electricity,20013,Expenditure,,ADDRESS REDACTED,04/08/2017,123091,574.78,Revenue,Opus Energy Ltd,65093
Chorley Borough Council,http://statistics.data.gov.uk/id/local-authority/30UE,Chorley Borough Council,,Business Development & Growth,Main Contractor,3007,Net Expenditure or Balance,,Cotswold House - General building works,16/08/2017,123359,"16,237.78",Revenue,P J Services (Bolton) Ltd,62962
Chorley Borough Council,http://statistics.data.gov.uk/id/local-authority/30UE,Fiona Daniels,,Business Development & Growth,Main Contractor,3007,Other Subjective Codes,,Cotswold House - General building works,16/08/2017,123360,"22,939.61",Revenue,P J Services (Bolton) Ltd,62962
Chorley Borough Council,http://statistics.data.gov.uk/id/local-authority/30UE,Human Resources & Org Develpmt,,Policy & Governance,HR Approved Occ Health Fees,15201,Cash,,Occupational Health Fees for May 2017,18/08/2017,123540,299.75,Revenue,People Asset Management Limited,76487
Chorley Borough Council,http://statistics.data.gov.uk/id/local-authority/30UE,Legal Democratic & HR Services,,Policy & Governance,HR Approved Occ Health Fees,15201,Expenditure,,Expenditure,18/08/2017,123540,295.00,Revenue,People Asset Management Limited,76487
Chorley Borough Council,http://statistics.data.gov.uk/id/local-authority/30UE,Chorley Borough Council,,Policy & Governance,Service Fees,40056,Cash,,Occupational Health Fees for July 2017,18/08/2017,123541,299.75,Revenue,People Asset Management Limited,76487
Chorley Borough Council,http://statistics.data.gov.uk/id/local-authority/30UE,Neighbourhoods,,Customer & Digital,Publicity - Advertising,40157,Expenditure,,Skip Hire Magazine Advert.  as per Quotation No.Q47685,30/08/2017,123754,295.00,Revenue,Perfect Associates Ltd,47289
Chorley Borough Council,http://statistics.data.gov.uk/id/local-authority/30UE,Chorley Borough Council,,Business Development & Growth,Other Capital Related Fees,3024,Other Funds and Balance Sheet,,Primrose Gardens July 2017,09/08/2017,123106,"1,896.00",Revenue,Perfect Circle JV Ltd,76438
Chorley Borough Council,http://statistics.data.gov.uk/id/local-authority/30UE,Capital Fund,,Business Development & Growth,Other Capital Related Fees,3024,Other,,July 2017 PM Fees,18/08/2017,123345,"2,432.25",Revenue,Perfect Circle JV Ltd,76438
Chorley Borough Council,http://statistics.data.gov.uk/id/local-authority/30UE,Street Services,,Customer & Digital,Supplies-Grounds Maintenance,40025,Cash,,Please supply Handi Reacher as per price quoted on your e-mail dated Mon 17/07/2017 12:13: ,18/08/2017,123420,144.90,Revenue,Performance Health Ltd,76826
Chorley Borough Council,http://statistics.data.gov.uk/id/local-authority/30UE,Chorley Borough Council,,Customer & Digital,Supplies-Grounds Maintenance,40025,Net Expenditure or Balance,,Please supply Handi Reacher as per price quoted on your e-mail dated Mon 17/07/2017 12:13: Item: 091114412 Description:,18/08/2017,123420,148.95,Revenue,Performance Health Ltd,76826
Chorley Borough Council,http://statistics.data.gov.uk/id/local-authority/30UE,"Cultural, Environmental & Plan",,Policy & Governance,Performing Rights Society Fees,40148,Subscriptions,,Fees for period 6th April to 5th July 2017,25/08/2017,123586,491.55,Revenue,Performing Right Society Ltd,19909
Chorley Borough Council,http://statistics.data.gov.uk/id/local-authority/30UE,Chorley Borough Council,,Customer & Digital,Supplies-Grounds Maintenance,40025,Supplies and Services,,24 Orchids (White) 36 Ivy 40 Begonia Red 40 Begonia Yellow 20 Boston Ferns,18/08/2017,123063,720.60,Revenue,Peter H Smith Limited,17088
Chorley Borough Council,http://statistics.data.gov.uk/id/local-authority/30UE,Chorley Borough Council,,Early Intervention,External Contractor,40198,Contracting Expenses & Fees,,Pest Control Duties within Chorley Council,04/08/2017,122832,340.00,Revenue,Peter L Johnson,16727
Chorley Borough Council,http://statistics.data.gov.uk/id/local-authority/30UE,Early Intervention & Support,,Early Intervention,External Contractor,40198,Contracting Expenses & Fees,,Pest Control Duties within Chorley Council,04/08/2017,122992,340.00,Revenue,Peter L Johnson,16727
Chorley Borough Council,http://statistics.data.gov.uk/id/local-authority/30UE,Chorley Borough Council,,Early Intervention,External Contractor,40198,Net Expenditure or Balance,,Pest Control Duties within Chorley Council,04/08/2017,123114,340.00,Revenue,Peter L Johnson,16727
Chorley Borough Council,http://statistics.data.gov.uk/id/local-authority/30UE,Streetscene Neighbourhoods Env,,Early Intervention,External Contractor,40198,Supplies and Services,,Pest Control Duties within Chorley Council,23/08/2017,123520,340.00,Revenue,Peter L Johnson,16727
Chorley Borough Council,http://statistics.data.gov.uk/id/local-authority/30UE,Capital Fund,,Customer & Digital,Consultants Fees,3025,Capital Expenditure,Capital,"Quantity surveying services for market walk - 43,056 over an 18 month period",23/08/2017,123058,"2,704.00",Revenue,Pick Everard,76515
Chorley Borough Council,http://statistics.data.gov.uk/id/local-authority/30UE,Chorley Borough Council,,Customer & Digital,Consultants Fees,3025,Net Expenditure or Balance,,"Project management services for market walk - 111,384 over an 18 month period",23/08/2017,123059,"5,408.00",Revenue,Pick Everard,76515
Chorley Borough Council,http://statistics.data.gov.uk/id/local-authority/30UE,Central & Support Appointments,1009,Customer & Digital,Printing,40043,"Printing, Stationery & General",5026,As per e-mail of 26 July 2017 to NAME REDACTED:A4 Chorley BC base stock (Garden waste label/letter) Matt white polyester,23/08/2017,123552,"1,250.00",Revenue,Pioneer Print Solutions,76681
Chorley Borough Council,http://statistics.data.gov.uk/id/local-authority/30UE,Chorley Borough Council,,Policy & Governance,LPA Precept,2010,Other Funds and Balance Sheet,,ctax precept,15/08/2017,123161,"601,241.00",Revenue,Police & Crime Commissioner,17438
Chorley Borough Council,http://statistics.data.gov.uk/id/local-authority/30UE,Policy & Governance,,Policy & Governance,Exhibitions & Special Events,40158,Expenditure,,Chorley Grand Prix Policing,16/08/2017,123295,"7,750.04",Revenue,Police & Crime Commissioner,17548
Chorley Borough Council,http://statistics.data.gov.uk/id/local-authority/30UE,Income and Expenditure Account,,Policy & Governance,Tools & Equipment - Hire,40004,Expenditure,,Provision and Installation of Pontoon Bridge for Chorley Flower Show,11/08/2017,123356,"9,999.00",Revenue,Pontoon Works Ltd,76763
Chorley Borough Council,http://statistics.data.gov.uk/id/local-authority/30UE,Communications,,Policy & Governance,Safety Signs And Posters,40017,Expenditure,,A 1 Unit(s) CFS Branded Signs 10mm Correx Boards with holes drilled 2 boards @ A2 17 boards @ A3 Supply only free delivery,09/08/2017,123048,540.62,Revenue,Poppy Signs Ltd,21898
Chorley Borough Council,http://statistics.data.gov.uk/id/local-authority/30UE,Cost of Service,,Chief Executive,Photocopier Consumables,40049,Cash,,"Evolution Everyday A4 80gsm, Box 2500",16/08/2017,123357,454.00,Revenue,Premier Paper Group,54451
Chorley Borough Council,http://statistics.data.gov.uk/id/local-authority/30UE,Policy & Governance,,Policy & Governance,Refreshments,40036,Catering,5024,"Supply, Sanitation, provision of cups and water for all Pressure Coolers for Council Sites for the month of August 2017",02/08/2017,123030,742.20,Revenue,Pressure Coolers Ltd T/A Maestro International Ltd,19767
Chorley Borough Council,http://statistics.data.gov.uk/id/local-authority/30UE,Group Director Service Group A,,Policy & Governance,Refreshments,40036,Food,,"Supply, Sanitation, provision of cups and water for all Pressure Coolers for Council Sites for the month of September 2017",16/08/2017,123406,417.00,Revenue,Pressure Coolers Ltd T/A Maestro International Ltd,19767
Chorley Borough Council,http://statistics.data.gov.uk/id/local-authority/30UE,Martin Sample,,Early Intervention,External Contractor,40198,Expenditure,,Provision of Handyperson services (funded by LCC IHIS) Q2 2017/18 covering the period 1/7/17 to 30/9/17,16/08/2017,123073,"7,225.00",Revenue,Preston Care and Repair,50018
Chorley Borough Council,http://statistics.data.gov.uk/id/local-authority/30UE,General Fund Revenue Account,,Policy & Governance,Postages,40082,Supplies and Services,,"Initial HEF mail out 50,477 properties",09/08/2017,123178,"13,426.88",Revenue,Print Image Facilities LLP,57870
Chorley Borough Council,http://statistics.data.gov.uk/id/local-authority/30UE,"RO5 Cult, Env, Reg & Planning",,Early Intervention,Play Events,40181,Supplies and Services,,300 Pedometers for play day,11/08/2017,122199,250.00,Revenue,Printed for you,76787
Chorley Borough Council,http://statistics.data.gov.uk/id/local-authority/30UE,Short Term Creditors,,Policy & Governance,General Balances,100,General Balances,,sal ded,16/08/2017,123157,"2,651.83",Revenue,PRUDENTIAL,18178
Chorley Borough Council,http://statistics.data.gov.uk/id/local-authority/30UE,Current Liabilities,,Policy & Governance,General Balances,100,Other Funds and Balance Sheet,,sal ded,30/08/2017,123647,"2,701.83",Revenue,PRUDENTIAL,18178
Chorley Borough Council,http://statistics.data.gov.uk/id/local-authority/30UE,Budget Holder Control Code,,Policy & Governance,General Balances,100,Other,,childcare vouchers,23/08/2017,123198,"4,638.84",Revenue,Reward Gateway (UK) Ltd,66814
Chorley Borough Council,http://statistics.data.gov.uk/id/local-authority/30UE,General Fund Below The Line,,Policy & Governance,Tariff to Business Rates Pool,49002,Expenditure not in NCOS,,lancs bus rates pool,15/08/2017,122944,"558,283.00",Revenue,Ribble Valley Borough Council,21100
Chorley Borough Council,http://statistics.data.gov.uk/id/local-authority/30UE,General Fund Revenue Account,,Policy & Governance,Tariff to Business Rates Pool,49002,Net Expenditure or Balance,,lancs bus rates pool,15/08/2017,122945,"558,283.00",Revenue,Ribble Valley Borough Council,21100
Chorley Borough Council,http://statistics.data.gov.uk/id/local-authority/30UE,"RO5 Cult, Env, Reg & Planning",,Customer & Digital,Supplies-Grounds Maintenance,40025,Materials & Supplies,,5 litres Trustee Amenity - to be delivered to Bengal Street Depot,16/08/2017,122901,"1,060.00",Revenue,Rigby Taylor Ltd,16299
Chorley Borough Council,http://statistics.data.gov.uk/id/local-authority/30UE,Management & Administration,1009,Customer & Digital,Supplies-Grounds Maintenance,40025,Expenditure,,2 x  R9 100% Ultra Fine Rye Grass Seed 20kg 4 x  R116 Fine Rye & Fescue Seed 20kg 3 x R4 Species Rich Mixture Grass,16/08/2017,123121,735.94,Revenue,Rigby Taylor Ltd,16299
Chorley Borough Council,http://statistics.data.gov.uk/id/local-authority/30UE,Management & Administration,1009,Customer & Digital,Supplies-Grounds Maintenance,40025,"Equipment, Furniture & Materia",5023,Supplies - ground maintenanance,16/08/2017,123121,662.00,Revenue,Rigby Taylor Ltd,16299
Chorley Borough Council,http://statistics.data.gov.uk/id/local-authority/30UE,Customer & Digital,,Customer & Digital,Supplies-Grounds Maintenance,40025,"Equipment, Furniture & Materia",5023,FAO NAME REDACTED 10Ltrs of Impact standard line marking paint to be delivered to Bengal St Depot - overnight despatch,23/08/2017,123510,260.00,Revenue,Rigby Taylor Ltd,16299
Chorley Borough Council,http://statistics.data.gov.uk/id/local-authority/30UE,Andrew Daniels,,Policy & Governance,Professional Fees,40063,Professional Fees,,cfs prize,16/08/2017,123436,400.00,Revenue,Roualeyn Fuchsias,76233
Chorley Borough Council,http://statistics.data.gov.uk/id/local-authority/30UE,Communications,,Policy & Governance,Miscellaneous Expenses,40200,Cash,,Staging for Flower Show,11/08/2017,123334,"9,587.00",Revenue,RPM Events,70613
Chorley Borough Council,http://statistics.data.gov.uk/id/local-authority/30UE,General Fund Revenue Account,,Policy & Governance,Other Contributions,40145,Supplies and Services,,Provision of entertainment for 2 days at the Chorley Flower Show 2017 (29/30 July),11/08/2017,121873,"2,000.00",Revenue,Sambafriq,21441
Chorley Borough Council,http://statistics.data.gov.uk/id/local-authority/30UE,General Fund Revenue Account,,Customer & Digital,Diesel/Derv,30007,Cash,,Please supply 4000 litres of gas oil as per your quote on The Chest dated 10 July 2017 of 0.43 per litre,30/08/2017,123680,"1,566.00",Revenue,Samuel Cooke & Co Ltd,17173
Chorley Borough Council,http://statistics.data.gov.uk/id/local-authority/30UE,Customer & Digital,,Customer & Digital,Diesel/Derv,30007,Expenditure,,Please supply 4000 litres of road diesel as per your quote on The Chest dated 10 July 2017 of 0.90 per litre,30/08/2017,123681,"3,620.00",Revenue,Samuel Cooke & Co Ltd,17173
Chorley Borough Council,http://statistics.data.gov.uk/id/local-authority/30UE,Cultural & Related Services,,Business Development & Growth,Electricity,20013,Expenditure,,tatton,23/08/2017,123546,643.20,Revenue,Scottish Power,18998
Chorley Borough Council,http://statistics.data.gov.uk/id/local-authority/30UE,Lorraine McIntyre,,Early Intervention,External Contractor,40198,Expenditure,,"Concierge Service at Cotswold Supported Housing, Cotswold Road, Chorley, PR7 3HW. This is for the period of April 17 March 18",04/08/2017,122622,"2,289.80",Revenue,Sector Security Services,19269
Chorley Borough Council,http://statistics.data.gov.uk/id/local-authority/30UE,Chorley Borough Council,,Early Intervention,External Contractor,40198,Contracting Expenses & Fees,,"For Concierge Service at Cotswold Supported Housing, Cotswold Road, Chorley, PR7 3HW. is for the period April 17 March 18",04/08/2017,122819,"2,289.80",Revenue,Sector Security Services,19269
Chorley Borough Council,http://statistics.data.gov.uk/id/local-authority/30UE,Homelessness,1075,Early Intervention,External Contractor,40198,Expenditure,,Concierge Cotswold,11/08/2017,123109,"2,313.88",Revenue,Sector Security Services,19269
Chorley Borough Council,http://statistics.data.gov.uk/id/local-authority/30UE,Homelessness,1075,Early Intervention,External Contractor,40198,Contracting Expenses & Fees,,Concirge Cotswold,11/08/2017,123325,"2,324.58",Revenue,Sector Security Services,19269
Chorley Borough Council,http://statistics.data.gov.uk/id/local-authority/30UE,Business Support,1095,Business Development & Growth,Security Service,40062,Services,5027,To provide security services to Market Walk Shopping Centre from April 2017 to March 2018. @5809.40 per month - Contract No,30/08/2017,123547,"5,809.40",Revenue,Securitas Security Services (UK) Ltd,70693
Chorley Borough Council,http://statistics.data.gov.uk/id/local-authority/30UE,Chorley Borough Council,,Policy & Governance,Grants To Other Organisations,40127,Expenditure,,GRANT,11/08/2017,123307,250.00,Revenue,NAME REDACTED,76848
Chorley Borough Council,http://statistics.data.gov.uk/id/local-authority/30UE,Customer & Digital,,Customer & Digital,Vehicles and Plant Operating Lease,30029,Expenditure,,Johnston Dual Sweeper Lease from 26th August 2017 to 25th August 2018,16/08/2017,123298,"20,501.16",Revenue,SG EQUIPMENT FINANCE LTD,18156
Chorley Borough Council,http://statistics.data.gov.uk/id/local-authority/30UE,Democratic Services,,Policy & Governance,Miscellaneous Expenses,40200,Cash,,"Your Chorley, Your Council event 20 October 2016",18/08/2017,123512,360.00,Revenue,Silent Noize Events,67599
Chorley Borough Council,http://statistics.data.gov.uk/id/local-authority/30UE,Waste & Streetscene Services,,Customer & Digital,Vehicle Maintenance,30045,Expenditure,,Complete welding repairs to AE14 AXW,18/08/2017,123417,350.00,Revenue,SM Sheet Metal Ltd,21243
Chorley Borough Council,http://statistics.data.gov.uk/id/local-authority/30UE,Environmental Health,,Early Intervention,Miscellaneous Expenses,40200,Expenditure,,COM 2243: Hughes and Long (Travel expenses) Chorley Road COM 2264: Bowling and Holly Chestnut Ave COM 2281: McDonnell,04/08/2017,122748,"1,066.80",Revenue,Smile Mediation Ltd,62536
Chorley Borough Council,http://statistics.data.gov.uk/id/local-authority/30UE,Cost of Service,,Policy & Governance,Furniture - Purchase,40012,Expenditure,,Supply of 1 sit stand desk Conset 501-7 117H in Beech with silver frame  Deliver to - Civic Services Town Hall Market St. Chorley,30/08/2017,123626,360.84,Revenue,Somercourt Ltd,67048
Chorley Borough Council,http://statistics.data.gov.uk/id/local-authority/30UE,Chorley Borough Council,,Customer & Digital,External Contractor,40198,Contracting Expenses & Fees,,FAO NAME REDACTED Tractor and Flail operator 42hrs @ 13.19p/h,23/08/2017,123560,553.98,Revenue,South Ribble Borough Council,17889
Chorley Borough Council,http://statistics.data.gov.uk/id/local-authority/30UE,Chorley Borough Council,,Customer & Digital,External Contractor,40198,Supplies and Services,,Tractor and flail operator - Overtime 9.25hrs @ 19.79,23/08/2017,123560,183.06,Revenue,South Ribble Borough Council,17889
Chorley Borough Council,http://statistics.data.gov.uk/id/local-authority/30UE,Customer & Digital,,Customer & Digital,Supplies-Grounds Maintenance,40025,Expenditure,,Buffet for 35 people. Northwest in Bloom judging,16/08/2017,123034,301.88,Revenue,Southcott Catering Ltd,21842
Chorley Borough Council,http://statistics.data.gov.uk/id/local-authority/30UE,Management & Administration,1009,Customer & Digital,Supplies - Workshop,40246,Expenditure,,Rear Roller for a Ransome Hiighway 3 Sport 200 head - part number 21011 as quote by NAME REDACTED,30/08/2017,123695,380.00,Revenue,Spalding (UK) Limited,20264
Chorley Borough Council,http://statistics.data.gov.uk/id/local-authority/30UE,Street Services,,Customer & Digital,Supplies - Workshop,40246,Cash,,Pivot Assembly for a Ransome Hiighway 3 Sport 200 head - part number 30829,30/08/2017,123695,100.00,Revenue,Spalding (UK) Limited,20264
Chorley Borough Council,http://statistics.data.gov.uk/id/local-authority/30UE,Management & Administration,1009,Customer & Digital,Supplies - Workshop,40246,Expenditure,,bushes for pivot assembly product code - 30860,30/08/2017,123695,20.00,Revenue,Spalding (UK) Limited,20264
Chorley Borough Council,http://statistics.data.gov.uk/id/local-authority/30UE,Chorley Borough Council,,Business Development & Growth,Electricity,20013,Cash,,oak house,23/08/2017,123203,325.85,Revenue,SSE Swalec,76853
Chorley Borough Council,http://statistics.data.gov.uk/id/local-authority/30UE,Democratic Services,,Policy & Governance,Other Contributions,40145,Supplies and Services,,mayors charity,11/08/2017,123306,"4,000.00",Revenue,St Catherine`s Hospice Trading Limited,19138
Chorley Borough Council,http://statistics.data.gov.uk/id/local-authority/30UE,Customer  Advice Services,,Customer & Digital,Miscellaneous Expenses,40200,Cash,,buffett,18/08/2017,123305,292.00,Revenue,St Catherines Social Enterprise Ltd,76345
Chorley Borough Council,http://statistics.data.gov.uk/id/local-authority/30UE,Budgets Not In Directorates,,Policy & Governance,Other Contributions,40145,Expenditure,,Provision of temporary 7C bus service extended period,09/08/2017,123147,"7,826.25",Revenue,Stagecoach Services Limited,18598
Chorley Borough Council,http://statistics.data.gov.uk/id/local-authority/30UE,Budgets Not In Directorates,,Policy & Governance,Other Contributions,40145,Contributions,,Provision of temporary 7C bus service extended period,16/08/2017,123348,"7,731.13",Revenue,Stagecoach Services Limited,18598
Chorley Borough Council,http://statistics.data.gov.uk/id/local-authority/30UE,Business Development Growth,,Business Development & Growth,Other Capital Related Fees,3024,Capital Expenditure,,Provision of Public Realm & Highway Design Engineering services as per contract for a period of 30 months from w/c 5th June 17  ,16/08/2017,123395,"2,700.00",Revenue,Street Civil Engineering Limited,76750
Chorley Borough Council,http://statistics.data.gov.uk/id/local-authority/30UE,Central & Support Appointments,1009,Business Development & Growth,Miscellaneous Expenses,40200,Expenditure,,Install new kitchen at Clayton Brook Community Centre,11/08/2017,122482,"3,560.00",Revenue,Stringfellow Bldg Cntrctrs Ltd,17893
Chorley Borough Council,http://statistics.data.gov.uk/id/local-authority/30UE,Roger Handscombe,,Business Development & Growth,General Repairs - Reactive,20004,Expenditure,,Blanket order for reactive repairs from June 2017,11/08/2017,122749,486.05,Revenue,Stringfellow Bldg Cntrctrs Ltd,17893
Chorley Borough Council,http://statistics.data.gov.uk/id/local-authority/30UE,Capital Fund,,Business Development & Growth,Main Contractor,3007,Other Subjective Codes,,kitchen refit at union st offices TF ORDER8440,11/08/2017,122767,"2,000.00",Revenue,Stringfellow Bldg Cntrctrs Ltd,17893
Chorley Borough Council,http://statistics.data.gov.uk/id/local-authority/30UE,Capital Fund,,Business Development & Growth,Main Contractor,3007,Other Subjective Codes,,General building Work At Union Street,23/08/2017,122878,"3,500.00",Revenue,Stringfellow Bldg Cntrctrs Ltd,17893
Chorley Borough Council,http://statistics.data.gov.uk/id/local-authority/30UE,Chorley Borough Council,,Early Intervention,Grants,3002,Other,,ADDRESS REDACTED,02/08/2017,122922,"2,700.00",Revenue,Stringfellow Bldg Cntrctrs Ltd,17893
Chorley Borough Council,http://statistics.data.gov.uk/id/local-authority/30UE,Chorley Borough Council,,Business Development & Growth,General Repairs - Reactive,20004,Cash,,Blanket order for reactive repairs from June 2017,11/08/2017,122964,355.24,Revenue,Stringfellow Bldg Cntrctrs Ltd,17893
Chorley Borough Council,http://statistics.data.gov.uk/id/local-authority/30UE,Chorley Borough Council,,Business Development & Growth,General Repairs - Reactive,20004,Expenditure,,Blanket order for reactive repairs from June 2017,11/08/2017,122965,327.50,Revenue,Stringfellow Bldg Cntrctrs Ltd,17893
Chorley Borough Council,http://statistics.data.gov.uk/id/local-authority/30UE,Chorley Borough Council,,Business Development & Growth,General Repairs - Reactive,20004,Cash,,Blanket order for reactive repairs from June 2017,11/08/2017,122973,354.35,Revenue,Stringfellow Bldg Cntrctrs Ltd,17893
Chorley Borough Council,http://statistics.data.gov.uk/id/local-authority/30UE,Chorley Borough Council,,Policy & Governance,Miscellaneous Expenses,40200,Cash,,planters,11/08/2017,122996,"1,739.58",Revenue,Stringfellow Bldg Cntrctrs Ltd,17893
Chorley Borough Council,http://statistics.data.gov.uk/id/local-authority/30UE,General Fund Revenue Account,,Business Development & Growth,General Repairs - Reactive,20004,Cash,,Blanket order for reactive repairs from June 2017,16/08/2017,123041,329.50,Revenue,Stringfellow Bldg Cntrctrs Ltd,17893
Chorley Borough Council,http://statistics.data.gov.uk/id/local-authority/30UE,Chris Moister,,Business Development & Growth,General Repairs - Reactive,20004,Expenditure,,Blanket order for reactive repairs from June 2017,16/08/2017,123049,"1,142.50",Revenue,Stringfellow Bldg Cntrctrs Ltd,17893
Chorley Borough Council,http://statistics.data.gov.uk/id/local-authority/30UE,Chorley Borough Council,,Business Development & Growth,External Contractor,40198,Expenditure,,last minute  works for digging in wires for the flower show,23/08/2017,123516,552.00,Revenue,Stringfellow Bldg Cntrctrs Ltd,17893
Chorley Borough Council,http://statistics.data.gov.uk/id/local-authority/30UE,Corporate & Democratic Core,,Policy & Governance,Processional Routes,40177,Supplies and Services,,Catering for the Freedom of the Borough event on 22nd July 2017.,09/08/2017,123297,"1,505.78",Revenue,Style Catering,66901
Chorley Borough Council,http://statistics.data.gov.uk/id/local-authority/30UE,Chorley Borough Council,,Business Development & Growth,Miscellaneous Expenses,40200,Cash,,Topographical Survey Update,23/08/2017,123564,500.00,Revenue,Survey Operations Ltd,55910
Chorley Borough Council,http://statistics.data.gov.uk/id/local-authority/30UE,Chorley Borough Council,,Customer & Digital,Other Contributions,40145,Supplies and Services,,plrg,18/08/2017,123550,"3,213.60",Revenue,NAME REDACTED,73990
Chorley Borough Council,http://statistics.data.gov.uk/id/local-authority/30UE,General Fund Revenue Account,,Business Development & Growth,Cleaning Materials,40019,Cash,,supply cleaning materials as per e-mail. Please ensure Deck brush complete has a suitable handle and the wet floor signs,09/08/2017,123071,260.90,Revenue,Swiftkleen Ltd,17933
Chorley Borough Council,http://statistics.data.gov.uk/id/local-authority/30UE,General Fund Revenue Account,,Policy & Governance,Cleaning Materials,40019,Cash,,EVER Everfresh Evens toilet cleaner apple 5L 3.38 per container QTY 3 boxes,16/08/2017,123361,10.14,Revenue,Swiftkleen Ltd,17933
Chorley Borough Council,http://statistics.data.gov.uk/id/local-authority/30UE,General Fund Revenue Account,,Policy & Governance,Cleaning Materials,40019,Cash,,TB Atlas thick bleach 5ltr QTY 2 boxes @ 1.55 per container,16/08/2017,123361,6.20,Revenue,Swiftkleen Ltd,17933
Chorley Borough Council,http://statistics.data.gov.uk/id/local-authority/30UE,General Fund Revenue Account,,Policy & Governance,Cleaning Materials,40019,Cash,,WG Clear Evens window and glass cleaner 5L 6.97 QTY 1 box,16/08/2017,123361,4.36,Revenue,Swiftkleen Ltd,17933
Chorley Borough Council,http://statistics.data.gov.uk/id/local-authority/30UE,Chorley Borough Council,,Policy & Governance,Cleaning Materials,40019,Cash,,BLUSYL Evans High Active Washing up Liquid/Detergent 5 litre PH Neutral 3.26 QTY 4,16/08/2017,123361,13.04,Revenue,Swiftkleen Ltd,17933
Chorley Borough Council,http://statistics.data.gov.uk/id/local-authority/30UE,General Fund Revenue Account,,Policy & Governance,Cleaning Materials,40019,Cash,,TR320 toilet rolls QTY 15 packs @ 36/pack at 5.50 per box,16/08/2017,123361,82.50,Revenue,Swiftkleen Ltd,17933
Chorley Borough Council,http://statistics.data.gov.uk/id/local-authority/30UE,Civic Services,,Policy & Governance,Cleaning Materials,40019,Cash,,MJ200R Mini Jumbo QTY 10 packs 12/pack @ 6.65 per pack,16/08/2017,123361,86.10,Revenue,Swiftkleen Ltd,17933
Chorley Borough Council,http://statistics.data.gov.uk/id/local-authority/30UE,CuDOSS Unit,,Policy & Governance,Cleaning Materials,40019,Cash,,Paper towels 3600 green 1 fold QTY 25 boxes 10.10 per box,16/08/2017,123361,252.50,Revenue,Swiftkleen Ltd,17933
Chorley Borough Council,http://statistics.data.gov.uk/id/local-authority/30UE,Chorley Borough Council,,Policy & Governance,Cleaning Materials,40019,Cash,,"UB3752	 Sirius Centrefeed 2 ply roll 150m Blue 11.70 QTY 4",16/08/2017,123361,28.80,Revenue,Swiftkleen Ltd,17933
Chorley Borough Council,http://statistics.data.gov.uk/id/local-authority/30UE,Civic Services,,Policy & Governance,Cleaning Materials,40019,Cash,,39BBL Black bin liners QTY 5 boxes 11.70 per box,16/08/2017,123361,58.50,Revenue,Swiftkleen Ltd,17933
Chorley Borough Council,http://statistics.data.gov.uk/id/local-authority/30UE,Civic Services,,Policy & Governance,Cleaning Materials,40019,Cash,,SBL White Swing bin liners 20 roll per pack 72p per pack QTY 20 packs,16/08/2017,123361,12.40,Revenue,Swiftkleen Ltd,17933
Chorley Borough Council,http://statistics.data.gov.uk/id/local-authority/30UE,Chorley Borough Council,,Policy & Governance,Cleaning Materials,40019,Cash,,HENRY Vacuum bags 4.18 10 per pack QTY 2,16/08/2017,123361,8.36,Revenue,Swiftkleen Ltd,17933
Chorley Borough Council,http://statistics.data.gov.uk/id/local-authority/30UE,Chorley Borough Council,,Policy & Governance,Cleaning Materials,40019,Cash,,CAF Spray Air fresh QTY 24 @0.70 each,16/08/2017,123361,12.00,Revenue,Swiftkleen Ltd,17933
Chorley Borough Council,http://statistics.data.gov.uk/id/local-authority/30UE,Chorley Borough Council,,Policy & Governance,Cleaning Materials,40019,Cash,,DCS Blue Dishcloths QTY 5 packs 10/pack @ 1.92,16/08/2017,123361,9.95,Revenue,Swiftkleen Ltd,17933
Chorley Borough Council,http://statistics.data.gov.uk/id/local-authority/30UE,Chorley Borough Council,,Policy & Governance,Cleaning Materials,40019,Cash,,DCS Green Dishcloths QTY 5 packs 10/pack @ 1.92 each,16/08/2017,123361,9.95,Revenue,Swiftkleen Ltd,17933
Chorley Borough Council,http://statistics.data.gov.uk/id/local-authority/30UE,Chorley Borough Council,,Policy & Governance,Cleaning Materials,40019,Cash,,DCS Yellow Dishcloths QTY 5 packs 10/pack @ 1.92 each,16/08/2017,123361,9.95,Revenue,Swiftkleen Ltd,17933
Chorley Borough Council,http://statistics.data.gov.uk/id/local-authority/30UE,Chorley Borough Council,,Policy & Governance,Cleaning Materials,40019,Cash,,NITPF Nitrile gloves size M 47.12 per case QTY 1,16/08/2017,123361,29.50,Revenue,Swiftkleen Ltd,17933
Chorley Borough Council,http://statistics.data.gov.uk/id/local-authority/30UE,Civic Services,,Policy & Governance,Cleaning Materials,40019,Cash,,TRI   Evans Vanodine Trigon handsoap unperfumed 5 L 5.52,16/08/2017,123361,11.04,Revenue,Swiftkleen Ltd,17933
Chorley Borough Council,http://statistics.data.gov.uk/id/local-authority/30UE,Chorley Borough Council,,Business Development & Growth,Cleaning Materials,40019,Cash,,Please supply cleaning materials as per e-mail,16/08/2017,123449,303.24,Revenue,Swiftkleen Ltd,17933
Chorley Borough Council,http://statistics.data.gov.uk/id/local-authority/30UE,Waste & Streetscene Services,,Customer & Digital,Supplies-Grounds Maintenance,40025,"Equipment, Furniture & Materia",5023,"Sirius Centrefeed Blue Roll, 150 metre, blue 2 ply, 6 rolls per case.  Product Code = UB3752",30/08/2017,123623,14.40,Revenue,Swiftkleen Ltd,17933
Chorley Borough Council,http://statistics.data.gov.uk/id/local-authority/30UE,Customer & Digital,,Customer & Digital,Supplies-Grounds Maintenance,40025,Expenditure,,Sirius white hygiene roll.  18 rolls per case.  Product Code = 1020W,30/08/2017,123623,56.60,Revenue,Swiftkleen Ltd,17933
Chorley Borough Council,http://statistics.data.gov.uk/id/local-authority/30UE,Management & Administration,1009,Customer & Digital,Supplies-Grounds Maintenance,40025,Expenditure,,Evans vanodine Fresh Aerosol Air Freshner.  Product Code = FRESHAEROWB,30/08/2017,123623,16.80,Revenue,Swiftkleen Ltd,17933
Chorley Borough Council,http://statistics.data.gov.uk/id/local-authority/30UE,Customer & Digital,,Customer & Digital,Supplies-Grounds Maintenance,40025,Expenditure,,Evans Vanodine Trigon Hand Soap.  500 ml.  product Code = TRI500,30/08/2017,123623,9.90,Revenue,Swiftkleen Ltd,17933
Chorley Borough Council,http://statistics.data.gov.uk/id/local-authority/30UE,Chorley Borough Council,,Customer & Digital,Supplies-Grounds Maintenance,40025,Materials & Supplies,,Evans Vanodine Handsan Alcohol Gel hand rub.  500 ml.  Product Code = HAND500,30/08/2017,123623,30.00,Revenue,Swiftkleen Ltd,17933
Chorley Borough Council,http://statistics.data.gov.uk/id/local-authority/30UE,Customer & Digital,,Customer & Digital,Supplies-Grounds Maintenance,40025,Expenditure,,Ramon dish cloth 12 x 16.  pack of 10.  Product Code = DC+Blue,30/08/2017,123623,5.52,Revenue,Swiftkleen Ltd,17933
Chorley Borough Council,http://statistics.data.gov.uk/id/local-authority/30UE,Chorley Borough Council,,Customer & Digital,Supplies-Grounds Maintenance,40025,Materials & Supplies,,HPC patient wet wipes.  Product Code = PWW,30/08/2017,123623,105.00,Revenue,Swiftkleen Ltd,17933
Chorley Borough Council,http://statistics.data.gov.uk/id/local-authority/30UE,Customer & Digital,,Customer & Digital,Supplies-Grounds Maintenance,40025,Expenditure,,HPC latex disposable gloves.  Size = Large.  Box of 100.  Product Code = LG+LG,30/08/2017,123623,75.00,Revenue,Swiftkleen Ltd,17933
Chorley Borough Council,http://statistics.data.gov.uk/id/local-authority/30UE,Chorley Borough Council,,Customer & Digital,Supplies-Grounds Maintenance,40025,Materials & Supplies,,Robert scott soft easigrip sponge scouring pad.  Pack of 10.  Product Code = BSS,30/08/2017,123623,16.80,Revenue,Swiftkleen Ltd,17933
Chorley Borough Council,http://statistics.data.gov.uk/id/local-authority/30UE,Customer & Digital,,Customer & Digital,Supplies-Grounds Maintenance,40025,Expenditure,,Ramon green contract scouring pad.  pack of 10.  Product Code = SCOP,30/08/2017,123623,11.00,Revenue,Swiftkleen Ltd,17933
Chorley Borough Council,http://statistics.data.gov.uk/id/local-authority/30UE,General Fund Revenue Account,,Policy & Governance,Rent/Hire Of Premises,20017,Premises Rents,,Payment for phase 2 of the Primary Care User Support Team from July to December 2017,23/08/2017,123108,"45,000.00",Revenue,The Chorley Surgery,76420
Chorley Borough Council,http://statistics.data.gov.uk/id/local-authority/30UE,Andrew Daniels,,Policy & Governance,Children's Activities,40188,Expenditure,,Delivery of arts and crafts at Chorley Flower Show,09/08/2017,123149,"1,085.00",Revenue,The Creation Station Merseyside,71522
Chorley Borough Council,http://statistics.data.gov.uk/id/local-authority/30UE,General Fund Revenue Account,,Policy & Governance,Exhibitions & Special Events,40158,Advertising and Publicity,,"Event management support running What�s Your Story, Chorley?, A Taste of Chorley and Christmas events.",11/08/2017,122730,522.86,Revenue,The Creative Network,61874
Chorley Borough Council,http://statistics.data.gov.uk/id/local-authority/30UE,Central and Support Services,,Policy & Governance,Exhibitions & Special Events,40158,Cash,,"Event management support running What�s Your Story, Chorley?, A Taste of Chorley and Christmas events.",23/08/2017,123504,"6,000.00",Revenue,The Creative Network,61874
Chorley Borough Council,http://statistics.data.gov.uk/id/local-authority/30UE,Chorley Borough Council,,Policy & Governance,Exhibitions & Special Events,40158,Advertising and Publicity,,Coordination and delivery of food project,23/08/2017,123505,"8,500.00",Revenue,The Creative Network,61874
Chorley Borough Council,http://statistics.data.gov.uk/id/local-authority/30UE,Policy and Performance,,Policy & Governance,Miscellaneous Expenses,40200,Net Expenditure or Balance,,Provision of entertainment at Chorley Flower Show,16/08/2017,123421,"1,340.00",Revenue,The Fairly Famous Family Limited,20457
Chorley Borough Council,http://statistics.data.gov.uk/id/local-authority/30UE,Chorley Borough Council,,Policy & Governance,Miscellaneous Expenses,40200,Expenditure,,Provision of food for Chorley Flower Show,30/08/2017,123748,480.00,Revenue,The Friends of Astley Hall,70956
Chorley Borough Council,http://statistics.data.gov.uk/id/local-authority/30UE,Andrew Daniels,,Policy & Governance,Professional Fees,40063,Professional Fees,,cfs prize,16/08/2017,123435,250.00,Revenue,The Lost World Nursery,71495
Chorley Borough Council,http://statistics.data.gov.uk/id/local-authority/30UE,Management & Administration,1009,Customer & Digital,Grounds Maintenance Contractor,20043,Expenditure,,Works carried out at Wallets Wood Court as agreed by Redrow Homes and Chorley Council,16/08/2017,123175,"3,500.00",Revenue,Treescape North West Ltd,17688
Chorley Borough Council,http://statistics.data.gov.uk/id/local-authority/30UE,Vision,,Customer & Digital,Vehicles and Plant Operating Lease,30029,Expenditure,,Lease of Swingo Compact Sweeper AE14 AXX from 26th August 17 to 25th August 18,23/08/2017,123468,"13,013.10",Revenue,Triple Point Lease Partners,71646
Chorley Borough Council,http://statistics.data.gov.uk/id/local-authority/30UE,Customer & Digital,,Customer & Digital,Vehicles and Plant Operating Lease,30029,Expenditure,,Lease of Swingo Compact Sweeper AE14 AXW from 26th August 17 to 25th August 18,23/08/2017,123468,"13,013.09",Revenue,Triple Point Lease Partners,71646
Chorley Borough Council,http://statistics.data.gov.uk/id/local-authority/30UE,Policy & Governance,,Policy & Governance,Service Fees,40056,Service Fees,,Counselling sessions for RL,02/08/2017,123087,280.00,Revenue,Truly Therapeutic Ltd,66885
Chorley Borough Council,http://statistics.data.gov.uk/id/local-authority/30UE,Legal Democratic & HR Services,,Policy & Governance,Grants To Other Organisations,40127,Expenditure,,grant,02/08/2017,123084,250.00,Revenue,NAME REDACTED,66384
Chorley Borough Council,http://statistics.data.gov.uk/id/local-authority/30UE,Group Director Service Group A,,Customer & Digital,Petrol,30005,Expenditure,,fuel,23/08/2017,123199,920.18,Revenue,Uk Fuels Ltd,57996
Chorley Borough Council,http://statistics.data.gov.uk/id/local-authority/30UE,Human Resources & Org Develpmt,,Policy & Governance,Miscellaneous Expenses,40200,Supplies and Services,,levels 1-5,02/08/2017,123095,"1,531.80",Revenue,UK Healthcare (BDHSC),17241
Chorley Borough Council,http://statistics.data.gov.uk/id/local-authority/30UE,Carol Worthington,,Policy & Governance,General Balances,100,Other,,top ups,02/08/2017,123095,601.17,Revenue,UK Healthcare (BDHSC),17241
Chorley Borough Council,http://statistics.data.gov.uk/id/local-authority/30UE,Andrew Daniels,,Policy & Governance,Children's Activities,40188,Expenditure,,2 Face painters for the Chorley Flower Show,16/08/2017,123316,700.00,Revenue,UK Media and Events Limited,71221
Chorley Borough Council,http://statistics.data.gov.uk/id/local-authority/30UE,General Fund Revenue Account,,Customer & Digital,Service Fees,40056,Supplies and Services,,Daily Hybrid mail & Annual Billing,09/08/2017,122974,700.18,Revenue,UKMAIL Ltd (Mail),57758
Chorley Borough Council,http://statistics.data.gov.uk/id/local-authority/30UE,General Fund Revenue Account,,Customer & Digital,Service Fees,40056,Supplies and Services,,Daily Hybrid mail & Annual Billing,09/08/2017,122975,681.81,Revenue,UKMAIL Ltd (Mail),57758
Chorley Borough Council,http://statistics.data.gov.uk/id/local-authority/30UE,Chorley Borough Council,,Customer & Digital,Service Fees,40056,Supplies and Services,,Daily Hybrid mail & Annual Billing,09/08/2017,122976,664.10,Revenue,UKMAIL Ltd (Mail),57758
Chorley Borough Council,http://statistics.data.gov.uk/id/local-authority/30UE,Central and Support Services,,Customer & Digital,Service Fees,40056,Expenditure,,Daily Hybrid mail & Annual Billing,09/08/2017,123116,"1,907.16",Revenue,UKMAIL Ltd (Mail),57758
Chorley Borough Council,http://statistics.data.gov.uk/id/local-authority/30UE,CuDOSS Unit,,Customer & Digital,Service Fees,40056,Expenditure,,Daily Hybrid mail & Annual Billing,09/08/2017,123150,727.07,Revenue,UKMAIL Ltd (Mail),57758
Chorley Borough Council,http://statistics.data.gov.uk/id/local-authority/30UE,Unapportionable Central OHeads,1009,Customer & Digital,Service Fees,40056,Expenditure,,Daily Hybrid mail & Annual Billing,30/08/2017,123632,897.02,Revenue,UKMAIL Ltd (Mail),57758
Chorley Borough Council,http://statistics.data.gov.uk/id/local-authority/30UE,General Fund Revenue Account,,Customer & Digital,Service Fees,40056,Cash,,Daily Hybrid mail & Annual Billing,30/08/2017,123639,783.09,Revenue,UKMAIL Ltd (Mail),57758
Chorley Borough Council,http://statistics.data.gov.uk/id/local-authority/30UE,Chorley Borough Council,,Customer & Digital,Service Fees,40056,Services,5027,Daily Hybrid mail & Annual Billing,30/08/2017,123640,662.48,Revenue,UKMAIL Ltd (Mail),57758
Chorley Borough Council,http://statistics.data.gov.uk/id/local-authority/30UE,Control  Holding and Suspense,,Policy & Governance,General Balances,100,Other,,salary deds,16/08/2017,123477,"1,855.85",Revenue,Unify Credit Union Ltd,55509
Chorley Borough Council,http://statistics.data.gov.uk/id/local-authority/30UE,Management & Administration,1009,Customer & Digital,Water - Metered Supplies,20022,Expenditure,,Hire of 3 x standpipes as per discussion with NAME REDACTED to start from 01/04/2017 through to 31/03/2018 at price quoted ,23/08/2017,122589,381.78,Revenue,United Utilites (Standpipe Invoices Only),20701
Chorley Borough Council,http://statistics.data.gov.uk/id/local-authority/30UE,Zoe Whiteside,,Business Development & Growth,Professional Fees,40063,Professional Fees,,Planning Support from Urban Vision for period April - July 2017,18/08/2017,123480,"2,880.00",Revenue,Urban Vision Partnership Ltd,21181
Chorley Borough Council,http://statistics.data.gov.uk/id/local-authority/30UE,Chorley Borough Council,,Policy & Governance,Processional Routes,40177,Supplies and Services,,traffic safety and management for the Freedom of the Borough parade in Chorley town centre on Saturday 22nd July 2017,16/08/2017,123419,965.00,Revenue,Ventbrook Ltd,69891
Chorley Borough Council,http://statistics.data.gov.uk/id/local-authority/30UE,Customer & Digital,,Customer & Digital,Internet Charges,40104,Expenditure,,Aug-17,25/08/2017,123581,"1,530.02",Revenue,Virgin Media Payments Ltd,17632
Chorley Borough Council,http://statistics.data.gov.uk/id/local-authority/30UE,Chorley Borough Council,,Policy & Governance,Miscellaneous Expenses,40200,Expenditure,,donation for new venue,02/08/2017,123085,250.00,Revenue,Visual Impairment Forum,76705
Chorley Borough Council,http://statistics.data.gov.uk/id/local-authority/30UE,Chorley Borough Council,,Customer & Digital,Computer Equipment-Purchase,40098,Cash,,credited in full,18/08/2017,117202,370.00,Revenue,Vohkus Limited,67630
Chorley Borough Council,http://statistics.data.gov.uk/id/local-authority/30UE,General Fund Revenue Account,,Customer & Digital,Computer Equipment-Purchase,40098,Net Expenditure or Balance,,Dell OptiPlex 3050 - Micro 1 x Core i3 7100T / 3.4 GHz - RAM 4 GB - SSD 128 GB - HD Graphics 630 GigE WLAN: 802.11a/b/g,04/08/2017,122897,358.00,Revenue,Vohkus Limited,67630
Chorley Borough Council,http://statistics.data.gov.uk/id/local-authority/30UE,ICT Services,,Customer & Digital,IT Software - Annual Licences,40101,Communication and Computing,5028,Autodesk AutoCAD LT 2018 Commercial New Single-use ELD Annual Subs PROMO Legacy 20% off x 8 @ 310 each,04/08/2017,123098,"2,480.00",Revenue,Vohkus Limited,67630
Chorley Borough Council,http://statistics.data.gov.uk/id/local-authority/30UE,Unapportionable Central OHeads,1009,Customer & Digital,Miscellaneous Expenses,40200,Miscellaneous Expenses,,VigorSwitch P2261 High-Power PoE Gigabit Switch x 3 units @ 316 per unit,09/08/2017,123107,948.00,Revenue,Vohkus Limited,67630
Chorley Borough Council,http://statistics.data.gov.uk/id/local-authority/30UE,Chorley Borough Council,,Customer & Digital,Miscellaneous Expenses,40200,Cash,,Vigor 2860 Series ADSL/VDSL Router x 7 units @ 173 per unit,09/08/2017,123107,"1,211.00",Revenue,Vohkus Limited,67630
Chorley Borough Council,http://statistics.data.gov.uk/id/local-authority/30UE,Central and Support Services,,Customer & Digital,Miscellaneous Expenses,40200,Miscellaneous Expenses,,Draytek Vigor AP910c Ceiling Wireless Access Point x 10 units @ 117 per unit,09/08/2017,123107,"1,170.00",Revenue,Vohkus Limited,67630
Chorley Borough Council,http://statistics.data.gov.uk/id/local-authority/30UE,Chorley Borough Council,,Customer & Digital,Computer Equipment-Purchase,40098,Supplies and Services,,Dell OptiPlex 3050 - Micro - 1 x Core i3 7100T / 3.4 GHz - RAM 4 GB - SSD 128 GB - HD Graphics 630 - GigE - WLAN: 802.11a,18/08/2017,123418,392.00,Revenue,Vohkus Limited,67630
Chorley Borough Council,http://statistics.data.gov.uk/id/local-authority/30UE,Business Development Growth,,Policy & Governance,Car Leasing Payment,14100,Expenditure,,4933291  Nissan Qashqai 1.6 dCi Tekna 5dr Hatchback Manual Diesel Paint: Metallic- Magnetic Red Upholstery: Graphite Leather,30/08/2017,123005,"3,328.32",Revenue,VWFS UK Ltd T/A Volkswagen Group Leasing,56010
Chorley Borough Council,http://statistics.data.gov.uk/id/local-authority/30UE,Chorley Borough Council,,Policy & Governance,Car Leasing Payment,14100,Expenditure,,VAT,30/08/2017,123005,274.17,Revenue,VWFS UK Ltd T/A Volkswagen Group Leasing,56010
Chorley Borough Council,http://statistics.data.gov.uk/id/local-authority/30UE,VAT Holding Account,,Policy & Governance,Manual Control Account,1,Other Funds and Balance Sheet,,VAT,30/08/2017,123005,-274.17,Revenue,VWFS UK Ltd T/A Volkswagen Group Leasing,56010
Chorley Borough Council,http://statistics.data.gov.uk/id/local-authority/30UE,Corporate and Policy Services,,Policy & Governance,Car Leasing Payment,14100,Net Expenditure,,Audi A3 - 1.6 TDi 116 S Line 5dr Transmission - Manual  Fuel - Diesel  Colour - Cosmos Blue Lease period - 3 Years  Driver - ,09/08/2017,123006,"2,856.37",Revenue,VWFS UK Ltd T/A Volkswagen Group Leasing,56010
Chorley Borough Council,http://statistics.data.gov.uk/id/local-authority/30UE,Vision,,Policy & Governance,Car Leasing Payment,14100,Employee Expenses,,vat,09/08/2017,123006,252.82,Revenue,VWFS UK Ltd T/A Volkswagen Group Leasing,56010
Chorley Borough Council,http://statistics.data.gov.uk/id/local-authority/30UE,Holding and Suspense Accounts,,Policy & Governance,Manual Control Account,1,Net Expenditure or Balance,,vat,09/08/2017,123006,-252.82,Revenue,VWFS UK Ltd T/A Volkswagen Group Leasing,56010
Chorley Borough Council,http://statistics.data.gov.uk/id/local-authority/30UE,Andrew Daniels,,Policy & Governance,Professional Fees,40063,Professional Fees,,cfs prize,16/08/2017,123437,400.00,Revenue,W Robinson & Son,76211
Chorley Borough Council,http://statistics.data.gov.uk/id/local-authority/30UE,Cost of Service,,Policy & Governance,Professional Fees,40063,Professional Fees,,cfs prize,16/08/2017,123439,400.00,Revenue,Wacks Wicked Plants,71501
Chorley Borough Council,http://statistics.data.gov.uk/id/local-authority/30UE,Chorley Borough Council,,Policy & Governance,Fire Extinguishers,20074,Premises Related Expenses,,As per quotation ref: 20627 Recommended additional works for the fire extinguishers at Bengal St depot,16/08/2017,122817,483.05,Revenue,Walker Fire (UK) Ltd,17092
Chorley Borough Council,http://statistics.data.gov.uk/id/local-authority/30UE,Central Support Services,1009,Policy & Governance,Fire Extinguishers,20074,Expenditure,,As per quotation ref: 20627 Recommended works to the fire extinguishers at the Town Hall  June 2017,16/08/2017,122818,731.00,Revenue,Walker Fire (UK) Ltd,17092
Chorley Borough Council,http://statistics.data.gov.uk/id/local-authority/30UE,Chorley Borough Council,,Business Development & Growth,Water - Metered Supplies,20022,Expenditure,,astley park village,04/08/2017,123090,"1,251.57",Revenue,Water-plus,17926
Chorley Borough Council,http://statistics.data.gov.uk/id/local-authority/30UE,Phil Davies,,Business Development & Growth,Water - Metered Supplies,20022,Expenditure,,apr - aug,16/08/2017,123378,"1,382.62",Revenue,Water-plus,17926
Chorley Borough Council,http://statistics.data.gov.uk/id/local-authority/30UE,Chorley Borough Council,,Business Development & Growth,Water - Metered Supplies,20022,Water Services,,apr - june,16/08/2017,123384,482.18,Revenue,Water-plus,17926
Chorley Borough Council,http://statistics.data.gov.uk/id/local-authority/30UE,Property Services,,Business Development & Growth,Water - Unmetered Supply,20023,Water Services,,may - aug,16/08/2017,123388,935.16,Revenue,Water-plus,17926
Chorley Borough Council,http://statistics.data.gov.uk/id/local-authority/30UE,Chorley Borough Council,,Business Development & Growth,Water - Metered Supplies,20022,Expenditure,,jan - mar,16/08/2017,123389,"2,568.65",Revenue,Water-plus,17926
Chorley Borough Council,http://statistics.data.gov.uk/id/local-authority/30UE,Waste & Streetscene Services,,Business Development & Growth,Water - Metered Supplies,20022,Water Services,,may - aug,16/08/2017,123408,"2,344.77",Revenue,Water-plus,17926
Chorley Borough Council,http://statistics.data.gov.uk/id/local-authority/30UE,Chorley Borough Council,,Business Development & Growth,Water - Metered Supplies,20022,Water Services,,apr - aug,16/08/2017,123424,272.37,Revenue,Water-plus,17926
Chorley Borough Council,http://statistics.data.gov.uk/id/local-authority/30UE,Customer & Digital,,Customer & Digital,Diesel/Derv,30007,Expenditure,,"supply and delivery of 3,500 litres of gas oil to Chorley Council�s Bengal Street Depot, Bengal Street, Chorley, PR7 1SA ",30/08/2017,123737,"1,605.91",Revenue,Watsons Fuels,22184
Chorley Borough Council,http://statistics.data.gov.uk/id/local-authority/30UE,General Fund Revenue Account,,Chief Executive,Postages,40082,Net Expenditure or Balance,,"Mail collection for Town Hall and Union Street, April 2017 - March 2018",09/08/2017,122869,299.76,Revenue,Whistl North Limited,67256
Chorley Borough Council,http://statistics.data.gov.uk/id/local-authority/30UE,General Fund Revenue Account,,Chief Executive,Postages,40082,Cash,,"Mail collection for Town Hall and Union Street, April 2017 - March 2018",09/08/2017,123105,273.39,Revenue,Whistl North Limited,67256
Chorley Borough Council,http://statistics.data.gov.uk/id/local-authority/30UE,Communications,,Policy & Governance,Miscellaneous Expenses,40200,Cash,,Willow weaving demonstrations for the flower show,25/08/2017,123575,300.00,Revenue,Willowpool Designs,70614
Chorley Borough Council,http://statistics.data.gov.uk/id/local-authority/30UE,Chorley Borough Council,,Customer & Digital,Computer Equipment-Purchase,40098,Expenditure,,"Xerox 510 wide format printer serial number 3070009098/1125477549 reading at 05/07/2017 is 14,351 reading at 05/04/2017",18/08/2017,123455,363.83,Revenue,Xeretec Document Solutions,20052
Chorley Borough Council,http://statistics.data.gov.uk/id/local-authority/30UE,General Fund Revenue Account,,Customer & Digital,Protective Clothing,40040,Cash,,Rodo Guardian high leg safety boot.  Product Code = ROD667.  Size = 7,16/08/2017,123013,29.80,Revenue,Yeshili Reflective Material Co Ltd T/A VIZWEAR,76338
Chorley Borough Council,http://statistics.data.gov.uk/id/local-authority/30UE,General Fund Revenue Account,,Customer & Digital,Protective Clothing,40040,Cash,,Rodo Guardian high leg safety boot.  Product Code = ROD667.  Size = 8,16/08/2017,123013,89.40,Revenue,Yeshili Reflective Material Co Ltd T/A VIZWEAR,76338
Chorley Borough Council,http://statistics.data.gov.uk/id/local-authority/30UE,Street Services,,Customer & Digital,Protective Clothing,40040,Cash,,Rodo Guardian high leg safety boot.  Product Code = ROD667.  Size = 9,16/08/2017,123013,59.60,Revenue,Yeshili Reflective Material Co Ltd T/A VIZWEAR,76338
Chorley Borough Council,http://statistics.data.gov.uk/id/local-authority/30UE,General Fund Revenue Account,,Customer & Digital,Protective Clothing,40040,Cash,,Rodo Guardian high leg safety boot.  Product Code = ROD667.  Size = 11,16/08/2017,123013,29.80,Revenue,Yeshili Reflective Material Co Ltd T/A VIZWEAR,76338
Chorley Borough Council,http://statistics.data.gov.uk/id/local-authority/30UE,Street Services,,Customer & Digital,Protective Clothing,40040,Cash,,Rodo Guardian high leg safety boot.  Product Code = ROD667.  Size = 10,16/08/2017,123013,59.60,Revenue,Yeshili Reflective Material Co Ltd T/A VIZWEAR,76338
Chorley Borough Council,http://statistics.data.gov.uk/id/local-authority/30UE,Health & Wellbeing,,Early Intervention,Miscellaneous Expenses,40200,Miscellaneous Expenses,,"Leaflet Dispenser	D17534	A4 Pockets x 1 Blue, 1 Red, 1 Green",16/08/2017,123113,91.20,Revenue,Yorkshire Purchasing Org,18098
Chorley Borough Council,http://statistics.data.gov.uk/id/local-authority/30UE,Net Cost of Service,,Early Intervention,Miscellaneous Expenses,40200,Expenditure,,"Leaflet Dispenser	D17535	A5 Pockets x 1 Blue, 1 Red, 1 Green",16/08/2017,123113,87.90,Revenue,Yorkshire Purchasing Org,18098
Chorley Borough Council,http://statistics.data.gov.uk/id/local-authority/30UE,General Fund Revenue Account,,Early Intervention,Miscellaneous Expenses,40200,Miscellaneous Expenses,,"Leaflet Dispenser	D17534	A4 Pockets x4 Blue",16/08/2017,123113,121.60,Revenue,Yorkshire Purchasing Org,18098
Chorley Borough Council,http://statistics.data.gov.uk/id/local-authority/30UE,General Fund Revenue Account,,Early Intervention,Miscellaneous Expenses,40200,Miscellaneous Expenses,,"Leaflet Dispenser	D17535	A5 Pockets x 4 Red",16/08/2017,123113,117.20,Revenue,Yorkshire Purchasing Org,18098
Chorley Borough Council,http://statistics.data.gov.uk/id/local-authority/30UE,General Fund Revenue Account,,Early Intervention,Miscellaneous Expenses,40200,Miscellaneous Expenses,,"Leaflet Dispenser	D17534	A4 Pockets x 3 Blue",16/08/2017,123113,91.20,Revenue,Yorkshire Purchasing Org,18098
Chorley Borough Council,http://statistics.data.gov.uk/id/local-authority/30UE,Chorley Borough Council,,Early Intervention,Miscellaneous Expenses,40200,Miscellaneous Expenses,,"Leaflet Dispenser	D17535	A5 Pockets x 3 Red",16/08/2017,123113,87.90,Revenue,Yorkshire Purchasing Org,18098
